Workbook

Sheet map
B2: Select and Highlight Areas on a Chart | F2: European cities (more than 100k inhabitants) | K2: www.cs-analytics.de
B4: Selected Cities | C4: =control!C21 -> 286 | D4: Not selected Cities | E4: =control!C22 -> 314 | H4: Total Population | I4: =control!C23 -> 106877166 | J4: Average Population | K4: =control!C24 -> 373696.3846
I7: Radial selection
I8: Rectangular selection
H10: Keep SHIFT key pressed and click /drag on the map to select
H11: Release the SHIFT key and click on the map again to deselect
H13: Top 15 countries selected
H14: by selected cities | J14: by population in million

Sheet data
B2: Data | D2: source: | E2: www.geonames.org
B4: City | C4: Country | D4: Latitude | E4: Longitude | F4: Population
B5: İstanbul | C5: Turkey | D5: 41.01384 | E5: 28.94966 | F5: 11174257
B6: London | C6: United Kingdom | D6: 51.50853 | E6: -0.12574 | F6: 7556900
B7: Ankara | C7: Turkey | D7: 39.91987 | E7: 32.85427 | F7: 3517182
B8: Berlin | C8: Germany | D8: 52.52437 | E8: 13.41053 | F8: 3426354
B9: Madrid | C9: Spain | D9: 40.4165 | E9: -3.70256 | F9: 3255944
B10: Kiev | C10: Ukraine | D10: 50.45466 | E10: 30.5238 | F10: 2797553
B11: İzmir | C11: Turkey | D11: 38.41273 | E11: 27.13838 | F11: 2500603
B12: Rome | C12: Italy | D12: 41.89193 | E12: 12.51133 | F12: 2318895
B13: Paris | C13: France | D13: 48.85341 | E13: 2.3488 | F13: 2138551
B14: Bucharest | C14: Romania | D14: 44.43225 | E14: 26.10626 | F14: 1877155
B15: Minsk | C15: Belarus | D15: 53.9 | E15: 27.56667 | F15: 1742124
B16: Budapest | C16: Hungary | D16: 47.49801 | E16: 19.03991 | F16: 1741041
B17: Hamburg | C17: Germany | D17: 53.57532 | E17: 10.01534 | F17: 1739117
B18: Warsaw | C18: Poland | D18: 52.22977 | E18: 21.01178 | F18: 1702139
B19: Vienna | C19: Austria | D19: 48.20849 | E19: 16.37208 | F19: 1691468
B20: Barcelona | C20: Spain | D20: 41.38879 | E20: 2.15899 | F20: 1621537
B21: Kharkiv | C21: Ukraine | D21: 49.98081 | E21: 36.25272 | F21: 1430885
B22: Bursa | C22: Turkey | D22: 40.19266 | E22: 29.08403 | F22: 1412701
B23: Belgrade | C23: Serbia | D23: 44.80401 | E23: 20.46513 | F23: 1273651
B24: Munich | C24: Germany | D24: 48.13743 | E24: 11.57549 | F24: 1260391
B25: Stockholm | C25: Sweden | D25: 59.33258 | E25: 18.0649 | F25: 1253309
B26: Adana | C26: Turkey | D26: 37.00167 | E26: 35.32889 | F26: 1248988
B27: Milano | C27: Italy | D27: 45.46427 | E27: 9.18951 | F27: 1236837
B28: Prague | C28: Czech Republic | D28: 50.08804 | E28: 14.42076 | F28: 1165581
B29: Copenhagen | C29: Denmark | D29: 55.67594 | E29: 12.56553 | F29: 1153615
B30: Sofia | C30: Bulgaria | D30: 42.69751 | E30: 23.32415 | F30: 1152556
B31: Gaziantep | C31: Turkey | D31: 37.05944 | E31: 37.3825 | F31: 1065975
B32: Dnipropetrovsk | C32: Ukraine | D32: 48.45 | E32: 34.98333 | F32: 1032822
B33: Donetsk | C33: Ukraine | D33: 48.023 | E33: 37.80224 | F33: 1024700
B34: Dublin | C34: Ireland | D34: 53.33306 | E34: -6.24889 | F34: 1024027
B35: Brussels | C35: Belgium | D35: 50.85045 | E35: 4.34878 | F35: 1019022
B36: Odessa | C36: Ukraine | D36: 46.47747 | E36: 30.73262 | F36: 1001558
B37: Birmingham | C37: United Kingdom | D37: 52.48142 | E37: -1.89983 | F37: 984333
B38: Cologne | C38: Germany | D38: 50.93333 | E38: 6.95 | F38: 963395
B39: Napoli | C39: Italy | D39: 40.85631 | E39: 14.24641 | F39: 959470
B40: Konya | C40: Turkey | D40: 37.87135 | E40: 32.48464 | F40: 875530
B41: Turin | C41: Italy | D41: 45.07049 | E41: 7.68682 | F41: 870456
B42: Valencia | C42: Spain | D42: 39.46975 | E42: -0.37739 | F42: 814208
B43: Zaporizhzhya | C43: Ukraine | D43: 47.82289 | E43: 35.19031 | F43: 796217
B44: Marseille | C44: France | D44: 43.29695 | E44: 5.38107 | F44: 794811
B45: Łódź | C45: Poland | D45: 51.75 | E45: 19.46667 | F45: 768755
B46: Antalya | C46: Turkey | D46: 36.90812 | E46: 30.69556 | F46: 758188
B47: Kraków | C47: Poland | D47: 50.06143 | E47: 19.93658 | F47: 755050
B48: Riga | C48: Latvia | D48: 56.946 | E48: 24.10589 | F48: 742572
B49: Amsterdam | C49: Netherlands | D49: 52.37403 | E49: 4.88969 | F49: 741636
B50: L'viv | C50: Ukraine | D50: 49.83826 | E50: 24.02324 | F50: 717803
B51: Sevilla | C51: Spain | D51: 37.38283 | E51: -5.97317 | F51: 703206
B52: Zagreb | C52: Croatia | D52: 45.81444 | E52: 15.97798 | F52: 698966
B53: Sarajevo | C53: Bosnia and Herzegovina | D53: 43.84864 | E53: 18.35644 | F53: 696731
B54: Zaragoza | C54: Spain | D54: 41.65606 | E54: -0.87734 | F54: 674317
B55: Athens | C55: Greece | D55: 37.97945 | E55: 23.71622 | F55: 664046
B56: Kryvyi Rih | C56: Ukraine | D56: 47.90966 | E56: 33.38044 | F56: 652380
B57: Frankfurt am Main | C57: Germany | D57: 50.11552 | E57: 8.68417 | F57: 650000
B58: Palermo | C58: Italy | D58: 38.13205 | E58: 13.33561 | F58: 648260
B59: Chişinău | C59: Moldova, Republic of | D59: 47.00556 | E59: 28.8575 | F59: 635994
B60: Wrocław | C60: Poland | D60: 51.1 | E60: 17.03333 | F60: 634893
B61: Glasgow | C61: United Kingdom | D61: 55.86515 | E61: -4.25763 | F61: 610268
B62: Rotterdam | C62: Netherlands | D62: 51.9225 | E62: 4.47917 | F62: 598199
B63: Essen | C63: Germany | D63: 51.45657 | E63: 7.01228 | F63: 593085
B64: Kayseri | C64: Turkey | D64: 38.73222 | E64: 35.48528 | F64: 592840
B65: Stuttgart | C65: Germany | D65: 48.78232 | E65: 9.17702 | F65: 589793
B66: Dortmund | C66: Germany | D66: 51.51494 | E66: 7.466 | F66: 588462
B67: Genoa | C67: Italy | D67: 44.4264 | E67: 8.91519 | F67: 580223
B68: Oslo | C68: Norway | D68: 59.91273 | E68: 10.74609 | F68: 580000
B69: Düsseldorf | C69: Germany | D69: 51.22172 | E69: 6.77616 | F69: 573057
B70: Poznań | C70: Poland | D70: 52.40692 | E70: 16.92993 | F70: 570352
B71: Málaga | C71: Spain | D71: 36.72016 | E71: -4.42034 | F71: 568305
B72: Helsinki | C72: Finland | D72: 60.16952 | E72: 24.93545 | F72: 558457
B73: Pristina | C73: Kosovo | D73: 42.67272 | E73: 21.16688 | F73: 550000
B74: Bremen | C74: Germany | D74: 53.07516 | E74: 8.80777 | F74: 546501
B75: Vilnius | C75: Lithuania | D75: 54.68916 | E75: 25.2798 | F75: 542366
B76: Mercin | C76: Turkey | D76: 36.79526 | E76: 34.61792 | F76: 537842
B77: Lisbon | C77: Portugal | D77: 38.71667 | E77: -9.13333 | F77: 517802
B78: Hannover | C78: Germany | D78: 52.37052 | E78: 9.73322 | F78: 515140
B79: Eskişehir | C79: Turkey | D79: 39.77667 | E79: 30.52056 | F79: 514869
B80: Mykolayiv | C80: Ukraine | D80: 46.96591 | E80: 31.9974 | F80: 510840
B81: Leipzig | C81: Germany | D81: 51.33962 | E81: 12.37129 | F81: 504971
B82: Duisburg | C82: Germany | D82: 51.43247 | E82: 6.76516 | F82: 504358
B83: Göteborg | C83: Sweden | D83: 57.70716 | E83: 11.96679 | F83: 504084
B84: Nürnberg | C84: Germany | D84: 49.45421 | E84: 11.07752 | F84: 499237
B85: Dresden | C85: Germany | D85: 51.05089 | E85: 13.73832 | F85: 486854
B86: Mariupol | C86: Ukraine | D86: 47.09514 | E86: 37.54131 | F86: 481626
B87: Gomel | C87: Belarus | D87: 52.4345 | E87: 30.9754 | F87: 480951
B88: Skopje | C88: Macedonia | D88: 41.99646 | E88: 21.43141 | F88: 474889
B89: The Hague | C89: Netherlands | D89: 52.07667 | E89: 4.29861 | F89: 474292
B90: Lyon | C90: France | D90: 45.74846 | E90: 4.84671 | F90: 472317
B91: Liverpool | C91: United Kingdom | D91: 53.41058 | E91: -2.97794 | F91: 468945
B92: Gdańsk | C92: Poland | D92: 54.35205 | E92: 18.64637 | F92: 461865
B93: Antwerpen | C93: Belgium | D93: 51.21989 | E93: 4.40346 | F93: 459805
B94: Leeds | C94: United Kingdom | D94: 53.79648 | E94: -1.54785 | F94: 455123
B95: Luhansk | C95: Ukraine | D95: 48.56705 | E95: 39.31706 | F95: 452000
B96: Şanlıurfa | C96: Turkey | D96: 37.16708 | E96: 38.79392 | F96: 449549
B97: Sheffield | C97: United Kingdom | D97: 53.38297 | E97: -1.4659 | F97: 447047
B98: Malatya | C98: Turkey | D98: 38.35018 | E98: 38.31667 | F98: 441805
B99: Murcia | C99: Spain | D99: 37.98704 | E99: -1.13004 | F99: 436870
B100: Edinburgh | C100: United Kingdom | D100: 55.95206 | E100: -3.19648 | F100: 435791
B101: Toulouse | C101: France | D101: 43.60426 | E101: 1.44367 | F101: 433055
B102: Bristol | C102: United Kingdom | D102: 51.45523 | E102: -2.59665 | F102: 430713
B103: Bratislava | C103: Slovakia | D103: 48.14816 | E103: 17.10674 | F103: 423737
B104: Szczecin | C104: Poland | D104: 53.42894 | E104: 14.55302 | F104: 407811
B105: Palma | C105: Spain | D105: 39.56939 | E105: 2.65024 | F105: 401270
B106: Khmel’nyts’kyy | C106: Ukraine | D106: 49.42161 | E106: 26.99653 | F106: 398346
B107: Manchester | C107: United Kingdom | D107: 53.48095 | E107: -2.23743 | F107: 395515
B108: Samsun | C108: Turkey | D108: 41.28667 | E108: 36.33 | F108: 394050
B109: Tallinn | C109: Estonia | D109: 59.43696 | E109: 24.75353 | F109: 394024
B110: Bochum | C110: Germany | D110: 51.48165 | E110: 7.21648 | F110: 385729
B111: Bochum-Hordel | C111: Germany | D111: 51.50168 | E111: 7.1756 | F111: 380000
B112: Sevastopol | C112: Ukraine | D112: 44.58883 | E112: 33.5224 | F112: 379200
B113: Makiyivka | C113: Ukraine | D113: 48.04782 | E113: 37.92576 | F113: 376610
B114: Kahramanmaraş | C114: Turkey | D114: 37.5847 | E114: 36.92641 | F114: 376045
B115: Tirana | C115: Albania | D115: 41.3275 | E115: 19.81889 | F115: 374801
B116: Kaunas | C116: Lithuania | D116: 54.9 | E116: 23.9 | F116: 374643
B117: Brno | C117: Czech Republic | D117: 49.19522 | E117: 16.60796 | F117: 369559
B118: Mahilyow | C118: Belarus | D118: 53.9168 | E118: 30.3449 | F118: 369200
B119: Bydgoszcz | C119: Poland | D119: 53.1235 | E119: 18.00762 | F119: 366452
B120: Bologna | C120: Italy | D120: 44.49381 | E120: 11.33875 | F120: 366133
B121: Wuppertal | C121: Germany | D121: 51.27027 | E121: 7.16755 | F121: 360797
B122: Lublin | C122: Poland | D122: 51.25 | E122: 22.56667 | F122: 360044
B123: Simferopol | C123: Ukraine | D123: 44.95719 | E123: 34.11079 | F123: 358108
B124: Bilbao | C124: Spain | D124: 43.26271 | E124: -2.92528 | F124: 354860
B125: Thessaloníki | C125: Greece | D125: 40.64361 | E125: 22.93086 | F125: 354290
B126: Vinnytsya | C126: Ukraine | D126: 49.23278 | E126: 28.48097 | F126: 352115
B127: Florence | C127: Italy | D127: 43.77925 | E127: 11.24626 | F127: 349296
B128: Vitebsk | C128: Belarus | D128: 55.1904 | E128: 30.2049 | F128: 342700
B129: Zürich | C129: Switzerland | D129: 47.36667 | E129: 8.55 | F129: 341730
B130: Plovdiv | C130: Bulgaria | D130: 42.15 | E130: 24.75 | F130: 340494
B131: Leicester | C131: United Kingdom | D131: 52.6386 | E131: -1.13169 | F131: 339239
B132: Nice | C132: France | D132: 43.70313 | E132: 7.26608 | F132: 338620
B133: Alicante | C133: Spain | D133: 38.34517 | E133: -0.48149 | F133: 334757
B134: Bielefeld | C134: Germany | D134: 52.03333 | E134: 8.53333 | F134: 331906
B135: Córdoba | C135: Spain | D135: 37.89155 | E135: -4.77275 | F135: 328428
B136: Kherson | C136: Ukraine | D136: 46.65581 | E136: 32.6178 | F136: 320477
B137: Iaşi | C137: Romania | D137: 47.16667 | E137: 27.6 | F137: 318012
B138: Valladolid | C138: Spain | D138: 41.65518 | E138: -4.72372 | F138: 317864
B139: Poltava | C139: Ukraine | D139: 49.59373 | E139: 34.54073 | F139: 317847
B140: Hrodna | C140: Belarus | D140: 53.6884 | E140: 23.8258 | F140: 317365
B141: Katowice | C141: Poland | D141: 50.25841 | E141: 19.02754 | F141: 317316
B142: Cluj-Napoca | C142: Romania | D142: 46.76667 | E142: 23.6 | F142: 316748
B143: Timişoara | C143: Romania | D143: 45.75372 | E143: 21.22571 | F143: 315053
B144: Denizli | C144: Turkey | D144: 37.77417 | E144: 29.0875 | F144: 313238
B145: Bonn | C145: Germany | D145: 50.73438 | E145: 7.09549 | F145: 313125
B146: Ostrava | C146: Czech Republic | D146: 49.83465 | E146: 18.28204 | F146: 313088
B147: Varna | C147: Bulgaria | D147: 43.21667 | E147: 27.91667 | F147: 312770
B148: Coventry | C148: United Kingdom | D148: 52.40656 | E148: -1.51217 | F148: 308313
B149: Mannheim | C149: Germany | D149: 49.49671 | E149: 8.47955 | F149: 307960
B150: Chernihiv | C150: Ukraine | D150: 51.50551 | E150: 31.28487 | F150: 307684
B151: Craiova | C151: Romania | D151: 44.31667 | E151: 23.8 | F151: 304142
B152: Constanţa | C152: Romania | D152: 44.18073 | E152: 28.63432 | F152: 303399
B153: Hull | C153: United Kingdom | D153: 53.7446 | E153: -0.33525 | F153: 302296
B154: Cardiff | C154: United Kingdom | D154: 51.48 | E154: -3.18 | F154: 302139
B155: Brest | C155: Belarus | D155: 52.09755 | E155: 23.68775 | F155: 300715
B156: Bradford | C156: United Kingdom | D156: 53.79391 | E156: -1.75206 | F156: 299310
B157: Elazığ | C157: Turkey | D157: 38.67431 | E157: 39.22321 | F157: 298004
B158: Cherkasy | C158: Ukraine | D158: 49.42854 | E158: 32.06207 | F158: 297568
B159: Vigo | C159: Spain | D159: 42.23282 | E159: -8.72264 | F159: 297332
B160: Sumy | C160: Ukraine | D160: 50.9216 | E160: 34.80029 | F160: 294456
B161: Galaţi | C161: Romania | D161: 45.45 | E161: 28.05 | F161: 294087
B162: Białystok | C162: Poland | D162: 53.13333 | E162: 23.16433 | F162: 291855
B163: Catania | C163: Italy | D163: 37.49223 | E163: 15.07041 | F163: 290927
B164: Utrecht | C164: Netherlands | D164: 52.09083 | E164: 5.12222 | F164: 290529
B165: Adapazarı | C165: Turkey | D165: 40.78056 | E165: 30.40333 | F165: 286787
B166: Karlsruhe | C166: Germany | D166: 49.00937 | E166: 8.40444 | F166: 283799
B167: Zhytomyr | C167: Ukraine | D167: 50.26487 | E167: 28.67669 | F167: 282192
B168: Gebze | C168: Turkey | D168: 40.80276 | E168: 29.43068 | F168: 281436
B169: Horlivka | C169: Ukraine | D169: 48.33576 | E169: 38.05325 | F169: 278550
B170: Gijón | C170: Spain | D170: 43.53573 | E170: -5.66152 | F170: 277554
B171: Bari | C171: Italy | D171: 41.11148 | E171: 16.8554 | F171: 277387
B172: Nantes | C172: France | D172: 47.21725 | E172: -1.55336 | F172: 277269
B173: Braşov | C173: Romania | D173: 45.64861 | E173: 25.60613 | F173: 276088
B174: Strasbourg | C174: France | D174: 48.58392 | E174: 7.74553 | F174: 274845
B175: Belfast | C175: United Kingdom | D175: 54.58333 | E175: -5.93333 | F175: 274770
B176: Wiesbaden | C176: Germany | D176: 50.08258 | E176: 8.24932 | F176: 272432
B177: Ljubljana | C177: Slovenia | D177: 46.05108 | E177: 14.50513 | F177: 272220
B178: Münster | C178: Germany | D178: 51.96236 | E178: 7.62571 | F178: 270184
B179: Gelsenkirchen | C179: Germany | D179: 51.5075 | E179: 7.12283 | F179: 270028
B180: Aachen | C180: Germany | D180: 50.77664 | E180: 6.08342 | F180: 265208
B181: Sivas | C181: Turkey | D181: 39.74833 | E181: 37.01611 | F181: 264022
B182: Mönchengladbach | C182: Germany | D182: 51.18539 | E182: 6.44172 | F182: 261742
B183: Malmö | C183: Sweden | D183: 55.60587 | E183: 13.00073 | F183: 261548
B184: Stoke-on-Trent | C184: United Kingdom | D184: 53.00415 | E184: -2.18538 | F184: 260419
B185: Augsburg | C185: Germany | D185: 48.37154 | E185: 10.89851 | F185: 259196
B186: Espoo | C186: Finland | D186: 60.2052 | E186: 24.6522 | F186: 256760
B187: Tarsus | C187: Turkey | D187: 36.91876 | E187: 34.8784 | F187: 256482
B188: Rivne | C188: Ukraine | D188: 50.62308 | E188: 26.22743 | F188: 255106
B189: Gdynia | C189: Poland | D189: 54.51889 | E189: 18.53188 | F189: 253730
B190: Wolverhampton | C190: United Kingdom | D190: 52.58547 | E190: -2.12296 | F190: 252791
B191: Niš | C191: Serbia | D191: 43.32472 | E191: 21.90333 | F191: 250000
B192: Porto | C192: Portugal | D192: 41.14961 | E192: -8.61099 | F192: 249633
B193: Kirovohrad | C193: Ukraine | D193: 48.5132 | E193: 32.2597 | F193: 249454
B194: Dniprodzerzhyns’k | C194: Ukraine | D194: 48.51134 | E194: 34.6021 | F194: 248575
B195: Montpellier | C195: France | D195: 43.61092 | E195: 3.87723 | F195: 248252
B196: Częstochowa | C196: Poland | D196: 50.79646 | E196: 19.12409 | F196: 248125
B197: Plymouth | C197: United Kingdom | D197: 50.37153 | E197: -4.14305 | F197: 247297
B198: Chemnitz | C198: Germany | D198: 50.8357 | E198: 12.92922 | F198: 247220
B199: Nottingham | C199: United Kingdom | D199: 52.9536 | E199: -1.15047 | F199: 246654
B200: Southampton | C200: United Kingdom | D200: 50.90395 | E200: -1.40428 | F200: 246201
B201: A Coruña | C201: Spain | D201: 43.37135 | E201: -8.396 | F201: 246056
B202: Braunschweig | C202: Germany | D202: 52.26594 | E202: 10.52673 | F202: 244715
... 402 more rows

Sheet control
B2: Control and Calculations | N2: www.cs-analytics.de
B4: Control parameters handled by option buttons and code
B6: Selection type | C6: 1
B8: Start / Center Lat | C8: 49.06058824
B9: Start / Center Long | C9: 21.567157
B10: Select Lat | C10: 58.25788235
B11: Select Long | C11: 13.06264498
B13: Aspect Ratio | C13: 0.841584146
B15: Geometrical calculations
B17: Radius | C17: =SQRT((C10-C8)^2+(myAspectRatio*(C11-C9))^2) -> 11.65403902
B19: Displayed Measures
B21: Count selected | C21: =COUNTIF($F$29:$F$628,">0") -> 286
B22: Count unselected | C22: =COUNTA(data!$B$5:$B$604)-C21 -> 314
B23: Total Population in m | C23: =SUM(F29:F628) -> 106877166
B24: Average Population in 000 | C24: =IFERROR(C23/C21,"") -> 373696.3846
B26: Selected cities
B28: City | C28: Selected | D28: Latitude | E28: Longitude | F28: Population
B29: =data!B5 -> İstanbul | C29: =CHOOSE(mySelectionType, SQRT((data!D5-control!$C$8)^2+(myAspectRatio*(data!E5-control!$C$9))^2)<=control!$C$17, AND(data!D5<=control!$C$8,data!E5>=control!$C$9,data!D5>=control!$C$10,data!E5<=control!$C$11)) -> TRUE | D29: =IF($C29,data!D5,NA()) -> 41.01384 | E29: =IF($C29,data!E5,NA()) -> 28.94966 | F29: =IF($C29,data!F5,0) -> 11174257
B30: =data!B6 -> London | C30: =CHOOSE(mySelectionType, SQRT((data!D6-control!$C$8)^2+(myAspectRatio*(data!E6-control!$C$9))^2)<=control!$C$17, AND(data!D6<=control!$C$8,data!E6>=control!$C$9,data!D6>=control!$C$10,data!E6<=control!$C$11)) -> FALSE | D30: =IF($C30,data!D6,NA()) ->  | E30: =IF($C30,data!E6,NA()) ->  | F30: =IF($C30,data!F6,0) -> 0
B31: =data!B7 -> Ankara | C31: =CHOOSE(mySelectionType, SQRT((data!D7-control!$C$8)^2+(myAspectRatio*(data!E7-control!$C$9))^2)<=control!$C$17, AND(data!D7<=control!$C$8,data!E7>=control!$C$9,data!D7>=control!$C$10,data!E7<=control!$C$11)) -> FALSE | D31: =IF($C31,data!D7,NA()) ->  | E31: =IF($C31,data!E7,NA()) ->  | F31: =IF($C31,data!F7,0) -> 0
B32: =data!B8 -> Berlin | C32: =CHOOSE(mySelectionType, SQRT((data!D8-control!$C$8)^2+(myAspectRatio*(data!E8-control!$C$9))^2)<=control!$C$17, AND(data!D8<=control!$C$8,data!E8>=control!$C$9,data!D8>=control!$C$10,data!E8<=control!$C$11)) -> TRUE | D32: =IF($C32,data!D8,NA()) -> 52.52437 | E32: =IF($C32,data!E8,NA()) -> 13.41053 | F32: =IF($C32,data!F8,0) -> 3426354
B33: =data!B9 -> Madrid | C33: =CHOOSE(mySelectionType, SQRT((data!D9-control!$C$8)^2+(myAspectRatio*(data!E9-control!$C$9))^2)<=control!$C$17, AND(data!D9<=control!$C$8,data!E9>=control!$C$9,data!D9>=control!$C$10,data!E9<=control!$C$11)) -> FALSE | D33: =IF($C33,data!D9,NA()) ->  | E33: =IF($C33,data!E9,NA()) ->  | F33: =IF($C33,data!F9,0) -> 0
B34: =data!B10 -> Kiev | C34: =CHOOSE(mySelectionType, SQRT((data!D10-control!$C$8)^2+(myAspectRatio*(data!E10-control!$C$9))^2)<=control!$C$17, AND(data!D10<=control!$C$8,data!E10>=control!$C$9,data!D10>=control!$C$10,data!E10<=control!$C$11)) -> TRUE | D34: =IF($C34,data!D10,NA()) -> 50.45466 | E34: =IF($C34,data!E10,NA()) -> 30.5238 | F34: =IF($C34,data!F10,0) -> 2797553
B35: =data!B11 -> İzmir | C35: =CHOOSE(mySelectionType, SQRT((data!D11-control!$C$8)^2+(myAspectRatio*(data!E11-control!$C$9))^2)<=control!$C$17, AND(data!D11<=control!$C$8,data!E11>=control!$C$9,data!D11>=control!$C$10,data!E11<=control!$C$11)) -> TRUE | D35: =IF($C35,data!D11,NA()) -> 38.41273 | E35: =IF($C35,data!E11,NA()) -> 27.13838 | F35: =IF($C35,data!F11,0) -> 2500603
B36: =data!B12 -> Rome | C36: =CHOOSE(mySelectionType, SQRT((data!D12-control!$C$8)^2+(myAspectRatio*(data!E12-control!$C$9))^2)<=control!$C$17, AND(data!D12<=control!$C$8,data!E12>=control!$C$9,data!D12>=control!$C$10,data!E12<=control!$C$11)) -> TRUE | D36: =IF($C36,data!D12,NA()) -> 41.89193 | E36: =IF($C36,data!E12,NA()) -> 12.51133 | F36: =IF($C36,data!F12,0) -> 2318895
B37: =data!B13 -> Paris | C37: =CHOOSE(mySelectionType, SQRT((data!D13-control!$C$8)^2+(myAspectRatio*(data!E13-control!$C$9))^2)<=control!$C$17, AND(data!D13<=control!$C$8,data!E13>=control!$C$9,data!D13>=control!$C$10,data!E13<=control!$C$11)) -> FALSE | D37: =IF($C37,data!D13,NA()) ->  | E37: =IF($C37,data!E13,NA()) ->  | F37: =IF($C37,data!F13,0) -> 0
B38: =data!B14 -> Bucharest | C38: =CHOOSE(mySelectionType, SQRT((data!D14-control!$C$8)^2+(myAspectRatio*(data!E14-control!$C$9))^2)<=control!$C$17, AND(data!D14<=control!$C$8,data!E14>=control!$C$9,data!D14>=control!$C$10,data!E14<=control!$C$11)) -> TRUE | D38: =IF($C38,data!D14,NA()) -> 44.43225 | E38: =IF($C38,data!E14,NA()) -> 26.10626 | F38: =IF($C38,data!F14,0) -> 1877155
B39: =data!B15 -> Minsk | C39: =CHOOSE(mySelectionType, SQRT((data!D15-control!$C$8)^2+(myAspectRatio*(data!E15-control!$C$9))^2)<=control!$C$17, AND(data!D15<=control!$C$8,data!E15>=control!$C$9,data!D15>=control!$C$10,data!E15<=control!$C$11)) -> TRUE | D39: =IF($C39,data!D15,NA()) -> 53.9 | E39: =IF($C39,data!E15,NA()) -> 27.56667 | F39: =IF($C39,data!F15,0) -> 1742124
B40: =data!B16 -> Budapest | C40: =CHOOSE(mySelectionType, SQRT((data!D16-control!$C$8)^2+(myAspectRatio*(data!E16-control!$C$9))^2)<=control!$C$17, AND(data!D16<=control!$C$8,data!E16>=control!$C$9,data!D16>=control!$C$10,data!E16<=control!$C$11)) -> TRUE | D40: =IF($C40,data!D16,NA()) -> 47.49801 | E40: =IF($C40,data!E16,NA()) -> 19.03991 | F40: =IF($C40,data!F16,0) -> 1741041
B41: =data!B17 -> Hamburg | C41: =CHOOSE(mySelectionType, SQRT((data!D17-control!$C$8)^2+(myAspectRatio*(data!E17-control!$C$9))^2)<=control!$C$17, AND(data!D17<=control!$C$8,data!E17>=control!$C$9,data!D17>=control!$C$10,data!E17<=control!$C$11)) -> TRUE | D41: =IF($C41,data!D17,NA()) -> 53.57532 | E41: =IF($C41,data!E17,NA()) -> 10.01534 | F41: =IF($C41,data!F17,0) -> 1739117
B42: =data!B18 -> Warsaw | C42: =CHOOSE(mySelectionType, SQRT((data!D18-control!$C$8)^2+(myAspectRatio*(data!E18-control!$C$9))^2)<=control!$C$17, AND(data!D18<=control!$C$8,data!E18>=control!$C$9,data!D18>=control!$C$10,data!E18<=control!$C$11)) -> TRUE | D42: =IF($C42,data!D18,NA()) -> 52.22977 | E42: =IF($C42,data!E18,NA()) -> 21.01178 | F42: =IF($C42,data!F18,0) -> 1702139
B43: =data!B19 -> Vienna | C43: =CHOOSE(mySelectionType, SQRT((data!D19-control!$C$8)^2+(myAspectRatio*(data!E19-control!$C$9))^2)<=control!$C$17, AND(data!D19<=control!$C$8,data!E19>=control!$C$9,data!D19>=control!$C$10,data!E19<=control!$C$11)) -> TRUE | D43: =IF($C43,data!D19,NA()) -> 48.20849 | E43: =IF($C43,data!E19,NA()) -> 16.37208 | F43: =IF($C43,data!F19,0) -> 1691468
B44: =data!B20 -> Barcelona | C44: =CHOOSE(mySelectionType, SQRT((data!D20-control!$C$8)^2+(myAspectRatio*(data!E20-control!$C$9))^2)<=control!$C$17, AND(data!D20<=control!$C$8,data!E20>=control!$C$9,data!D20>=control!$C$10,data!E20<=control!$C$11)) -> FALSE | D44: =IF($C44,data!D20,NA()) ->  | E44: =IF($C44,data!E20,NA()) ->  | F44: =IF($C44,data!F20,0) -> 0
B45: =data!B21 -> Kharkiv | C45: =CHOOSE(mySelectionType, SQRT((data!D21-control!$C$8)^2+(myAspectRatio*(data!E21-control!$C$9))^2)<=control!$C$17, AND(data!D21<=control!$C$8,data!E21>=control!$C$9,data!D21>=control!$C$10,data!E21<=control!$C$11)) -> FALSE | D45: =IF($C45,data!D21,NA()) ->  | E45: =IF($C45,data!E21,NA()) ->  | F45: =IF($C45,data!F21,0) -> 0
B46: =data!B22 -> Bursa | C46: =CHOOSE(mySelectionType, SQRT((data!D22-control!$C$8)^2+(myAspectRatio*(data!E22-control!$C$9))^2)<=control!$C$17, AND(data!D22<=control!$C$8,data!E22>=control!$C$9,data!D22>=control!$C$10,data!E22<=control!$C$11)) -> TRUE | D46: =IF($C46,data!D22,NA()) -> 40.19266 | E46: =IF($C46,data!E22,NA()) -> 29.08403 | F46: =IF($C46,data!F22,0) -> 1412701
B47: =data!B23 -> Belgrade | C47: =CHOOSE(mySelectionType, SQRT((data!D23-control!$C$8)^2+(myAspectRatio*(data!E23-control!$C$9))^2)<=control!$C$17, AND(data!D23<=control!$C$8,data!E23>=control!$C$9,data!D23>=control!$C$10,data!E23<=control!$C$11)) -> TRUE | D47: =IF($C47,data!D23,NA()) -> 44.80401 | E47: =IF($C47,data!E23,NA()) -> 20.46513 | F47: =IF($C47,data!F23,0) -> 1273651
B48: =data!B24 -> Munich | C48: =CHOOSE(mySelectionType, SQRT((data!D24-control!$C$8)^2+(myAspectRatio*(data!E24-control!$C$9))^2)<=control!$C$17, AND(data!D24<=control!$C$8,data!E24>=control!$C$9,data!D24>=control!$C$10,data!E24<=control!$C$11)) -> TRUE | D48: =IF($C48,data!D24,NA()) -> 48.13743 | E48: =IF($C48,data!E24,NA()) -> 11.57549 | F48: =IF($C48,data!F24,0) -> 1260391
B49: =data!B25 -> Stockholm | C49: =CHOOSE(mySelectionType, SQRT((data!D25-control!$C$8)^2+(myAspectRatio*(data!E25-control!$C$9))^2)<=control!$C$17, AND(data!D25<=control!$C$8,data!E25>=control!$C$9,data!D25>=control!$C$10,data!E25<=control!$C$11)) -> TRUE | D49: =IF($C49,data!D25,NA()) -> 59.33258 | E49: =IF($C49,data!E25,NA()) -> 18.0649 | F49: =IF($C49,data!F25,0) -> 1253309
B50: =data!B26 -> Adana | C50: =CHOOSE(mySelectionType, SQRT((data!D26-control!$C$8)^2+(myAspectRatio*(data!E26-control!$C$9))^2)<=control!$C$17, AND(data!D26<=control!$C$8,data!E26>=control!$C$9,data!D26>=control!$C$10,data!E26<=control!$C$11)) -> FALSE | D50: =IF($C50,data!D26,NA()) ->  | E50: =IF($C50,data!E26,NA()) ->  | F50: =IF($C50,data!F26,0) -> 0
B51: =data!B27 -> Milano | C51: =CHOOSE(mySelectionType, SQRT((data!D27-control!$C$8)^2+(myAspectRatio*(data!E27-control!$C$9))^2)<=control!$C$17, AND(data!D27<=control!$C$8,data!E27>=control!$C$9,data!D27>=control!$C$10,data!E27<=control!$C$11)) -> TRUE | D51: =IF($C51,data!D27,NA()) -> 45.46427 | E51: =IF($C51,data!E27,NA()) -> 9.18951 | F51: =IF($C51,data!F27,0) -> 1236837
B52: =data!B28 -> Prague | C52: =CHOOSE(mySelectionType, SQRT((data!D28-control!$C$8)^2+(myAspectRatio*(data!E28-control!$C$9))^2)<=control!$C$17, AND(data!D28<=control!$C$8,data!E28>=control!$C$9,data!D28>=control!$C$10,data!E28<=control!$C$11)) -> TRUE | D52: =IF($C52,data!D28,NA()) -> 50.08804 | E52: =IF($C52,data!E28,NA()) -> 14.42076 | F52: =IF($C52,data!F28,0) -> 1165581
B53: =data!B29 -> Copenhagen | C53: =CHOOSE(mySelectionType, SQRT((data!D29-control!$C$8)^2+(myAspectRatio*(data!E29-control!$C$9))^2)<=control!$C$17, AND(data!D29<=control!$C$8,data!E29>=control!$C$9,data!D29>=control!$C$10,data!E29<=control!$C$11)) -> TRUE | D53: =IF($C53,data!D29,NA()) -> 55.67594 | E53: =IF($C53,data!E29,NA()) -> 12.56553 | F53: =IF($C53,data!F29,0) -> 1153615
B54: =data!B30 -> Sofia | C54: =CHOOSE(mySelectionType, SQRT((data!D30-control!$C$8)^2+(myAspectRatio*(data!E30-control!$C$9))^2)<=control!$C$17, AND(data!D30<=control!$C$8,data!E30>=control!$C$9,data!D30>=control!$C$10,data!E30<=control!$C$11)) -> TRUE | D54: =IF($C54,data!D30,NA()) -> 42.69751 | E54: =IF($C54,data!E30,NA()) -> 23.32415 | F54: =IF($C54,data!F30,0) -> 1152556
B55: =data!B31 -> Gaziantep | C55: =CHOOSE(mySelectionType, SQRT((data!D31-control!$C$8)^2+(myAspectRatio*(data!E31-control!$C$9))^2)<=control!$C$17, AND(data!D31<=control!$C$8,data!E31>=control!$C$9,data!D31>=control!$C$10,data!E31<=control!$C$11)) -> FALSE | D55: =IF($C55,data!D31,NA()) ->  | E55: =IF($C55,data!E31,NA()) ->  | F55: =IF($C55,data!F31,0) -> 0
B56: =data!B32 -> Dnipropetrovsk | C56: =CHOOSE(mySelectionType, SQRT((data!D32-control!$C$8)^2+(myAspectRatio*(data!E32-control!$C$9))^2)<=control!$C$17, AND(data!D32<=control!$C$8,data!E32>=control!$C$9,data!D32>=control!$C$10,data!E32<=control!$C$11)) -> TRUE | D56: =IF($C56,data!D32,NA()) -> 48.45 | E56: =IF($C56,data!E32,NA()) -> 34.98333 | F56: =IF($C56,data!F32,0) -> 1032822
B57: =data!B33 -> Donetsk | C57: =CHOOSE(mySelectionType, SQRT((data!D33-control!$C$8)^2+(myAspectRatio*(data!E33-control!$C$9))^2)<=control!$C$17, AND(data!D33<=control!$C$8,data!E33>=control!$C$9,data!D33>=control!$C$10,data!E33<=control!$C$11)) -> FALSE | D57: =IF($C57,data!D33,NA()) ->  | E57: =IF($C57,data!E33,NA()) ->  | F57: =IF($C57,data!F33,0) -> 0
B58: =data!B34 -> Dublin | C58: =CHOOSE(mySelectionType, SQRT((data!D34-control!$C$8)^2+(myAspectRatio*(data!E34-control!$C$9))^2)<=control!$C$17, AND(data!D34<=control!$C$8,data!E34>=control!$C$9,data!D34>=control!$C$10,data!E34<=control!$C$11)) -> FALSE | D58: =IF($C58,data!D34,NA()) ->  | E58: =IF($C58,data!E34,NA()) ->  | F58: =IF($C58,data!F34,0) -> 0
B59: =data!B35 -> Brussels | C59: =CHOOSE(mySelectionType, SQRT((data!D35-control!$C$8)^2+(myAspectRatio*(data!E35-control!$C$9))^2)<=control!$C$17, AND(data!D35<=control!$C$8,data!E35>=control!$C$9,data!D35>=control!$C$10,data!E35<=control!$C$11)) -> FALSE | D59: =IF($C59,data!D35,NA()) ->  | E59: =IF($C59,data!E35,NA()) ->  | F59: =IF($C59,data!F35,0) -> 0
B60: =data!B36 -> Odessa | C60: =CHOOSE(mySelectionType, SQRT((data!D36-control!$C$8)^2+(myAspectRatio*(data!E36-control!$C$9))^2)<=control!$C$17, AND(data!D36<=control!$C$8,data!E36>=control!$C$9,data!D36>=control!$C$10,data!E36<=control!$C$11)) -> TRUE | D60: =IF($C60,data!D36,NA()) -> 46.47747 | E60: =IF($C60,data!E36,NA()) -> 30.73262 | F60: =IF($C60,data!F36,0) -> 1001558
B61: =data!B37 -> Birmingham | C61: =CHOOSE(mySelectionType, SQRT((data!D37-control!$C$8)^2+(myAspectRatio*(data!E37-control!$C$9))^2)<=control!$C$17, AND(data!D37<=control!$C$8,data!E37>=control!$C$9,data!D37>=control!$C$10,data!E37<=control!$C$11)) -> FALSE | D61: =IF($C61,data!D37,NA()) ->  | E61: =IF($C61,data!E37,NA()) ->  | F61: =IF($C61,data!F37,0) -> 0
B62: =data!B38 -> Cologne | C62: =CHOOSE(mySelectionType, SQRT((data!D38-control!$C$8)^2+(myAspectRatio*(data!E38-control!$C$9))^2)<=control!$C$17, AND(data!D38<=control!$C$8,data!E38>=control!$C$9,data!D38>=control!$C$10,data!E38<=control!$C$11)) -> FALSE | D62: =IF($C62,data!D38,NA()) ->  | E62: =IF($C62,data!E38,NA()) ->  | F62: =IF($C62,data!F38,0) -> 0
B63: =data!B39 -> Napoli | C63: =CHOOSE(mySelectionType, SQRT((data!D39-control!$C$8)^2+(myAspectRatio*(data!E39-control!$C$9))^2)<=control!$C$17, AND(data!D39<=control!$C$8,data!E39>=control!$C$9,data!D39>=control!$C$10,data!E39<=control!$C$11)) -> TRUE | D63: =IF($C63,data!D39,NA()) -> 40.85631 | E63: =IF($C63,data!E39,NA()) -> 14.24641 | F63: =IF($C63,data!F39,0) -> 959470
B64: =data!B40 -> Konya | C64: =CHOOSE(mySelectionType, SQRT((data!D40-control!$C$8)^2+(myAspectRatio*(data!E40-control!$C$9))^2)<=control!$C$17, AND(data!D40<=control!$C$8,data!E40>=control!$C$9,data!D40>=control!$C$10,data!E40<=control!$C$11)) -> FALSE | D64: =IF($C64,data!D40,NA()) ->  | E64: =IF($C64,data!E40,NA()) ->  | F64: =IF($C64,data!F40,0) -> 0
B65: =data!B41 -> Turin | C65: =CHOOSE(mySelectionType, SQRT((data!D41-control!$C$8)^2+(myAspectRatio*(data!E41-control!$C$9))^2)<=control!$C$17, AND(data!D41<=control!$C$8,data!E41>=control!$C$9,data!D41>=control!$C$10,data!E41<=control!$C$11)) -> FALSE | D65: =IF($C65,data!D41,NA()) ->  | E65: =IF($C65,data!E41,NA()) ->  | F65: =IF($C65,data!F41,0) -> 0
B66: =data!B42 -> Valencia | C66: =CHOOSE(mySelectionType, SQRT((data!D42-control!$C$8)^2+(myAspectRatio*(data!E42-control!$C$9))^2)<=control!$C$17, AND(data!D42<=control!$C$8,data!E42>=control!$C$9,data!D42>=control!$C$10,data!E42<=control!$C$11)) -> FALSE | D66: =IF($C66,data!D42,NA()) ->  | E66: =IF($C66,data!E42,NA()) ->  | F66: =IF($C66,data!F42,0) -> 0
B67: =data!B43 -> Zaporizhzhya | C67: =CHOOSE(mySelectionType, SQRT((data!D43-control!$C$8)^2+(myAspectRatio*(data!E43-control!$C$9))^2)<=control!$C$17, AND(data!D43<=control!$C$8,data!E43>=control!$C$9,data!D43>=control!$C$10,data!E43<=control!$C$11)) -> TRUE | D67: =IF($C67,data!D43,NA()) -> 47.82289 | E67: =IF($C67,data!E43,NA()) -> 35.19031 | F67: =IF($C67,data!F43,0) -> 796217
B68: =data!B44 -> Marseille | C68: =CHOOSE(mySelectionType, SQRT((data!D44-control!$C$8)^2+(myAspectRatio*(data!E44-control!$C$9))^2)<=control!$C$17, AND(data!D44<=control!$C$8,data!E44>=control!$C$9,data!D44>=control!$C$10,data!E44<=control!$C$11)) -> FALSE | D68: =IF($C68,data!D44,NA()) ->  | E68: =IF($C68,data!E44,NA()) ->  | F68: =IF($C68,data!F44,0) -> 0
B69: =data!B45 -> Łódź | C69: =CHOOSE(mySelectionType, SQRT((data!D45-control!$C$8)^2+(myAspectRatio*(data!E45-control!$C$9))^2)<=control!$C$17, AND(data!D45<=control!$C$8,data!E45>=control!$C$9,data!D45>=control!$C$10,data!E45<=control!$C$11)) -> TRUE | D69: =IF($C69,data!D45,NA()) -> 51.75 | E69: =IF($C69,data!E45,NA()) -> 19.46667 | F69: =IF($C69,data!F45,0) -> 768755
B70: =data!B46 -> Antalya | C70: =CHOOSE(mySelectionType, SQRT((data!D46-control!$C$8)^2+(myAspectRatio*(data!E46-control!$C$9))^2)<=control!$C$17, AND(data!D46<=control!$C$8,data!E46>=control!$C$9,data!D46>=control!$C$10,data!E46<=control!$C$11)) -> FALSE | D70: =IF($C70,data!D46,NA()) ->  | E70: =IF($C70,data!E46,NA()) ->  | F70: =IF($C70,data!F46,0) -> 0
B71: =data!B47 -> Kraków | C71: =CHOOSE(mySelectionType, SQRT((data!D47-control!$C$8)^2+(myAspectRatio*(data!E47-control!$C$9))^2)<=control!$C$17, AND(data!D47<=control!$C$8,data!E47>=control!$C$9,data!D47>=control!$C$10,data!E47<=control!$C$11)) -> TRUE | D71: =IF($C71,data!D47,NA()) -> 50.06143 | E71: =IF($C71,data!E47,NA()) -> 19.93658 | F71: =IF($C71,data!F47,0) -> 755050
B72: =data!B48 -> Riga | C72: =CHOOSE(mySelectionType, SQRT((data!D48-control!$C$8)^2+(myAspectRatio*(data!E48-control!$C$9))^2)<=control!$C$17, AND(data!D48<=control!$C$8,data!E48>=control!$C$9,data!D48>=control!$C$10,data!E48<=control!$C$11)) -> TRUE | D72: =IF($C72,data!D48,NA()) -> 56.946 | E72: =IF($C72,data!E48,NA()) -> 24.10589 | F72: =IF($C72,data!F48,0) -> 742572
B73: =data!B49 -> Amsterdam | C73: =CHOOSE(mySelectionType, SQRT((data!D49-control!$C$8)^2+(myAspectRatio*(data!E49-control!$C$9))^2)<=control!$C$17, AND(data!D49<=control!$C$8,data!E49>=control!$C$9,data!D49>=control!$C$10,data!E49<=control!$C$11)) -> FALSE | D73: =IF($C73,data!D49,NA()) ->  | E73: =IF($C73,data!E49,NA()) ->  | F73: =IF($C73,data!F49,0) -> 0
B74: =data!B50 -> L'viv | C74: =CHOOSE(mySelectionType, SQRT((data!D50-control!$C$8)^2+(myAspectRatio*(data!E50-control!$C$9))^2)<=control!$C$17, AND(data!D50<=control!$C$8,data!E50>=control!$C$9,data!D50>=control!$C$10,data!E50<=control!$C$11)) -> TRUE | D74: =IF($C74,data!D50,NA()) -> 49.83826 | E74: =IF($C74,data!E50,NA()) -> 24.02324 | F74: =IF($C74,data!F50,0) -> 717803
B75: =data!B51 -> Sevilla | C75: =CHOOSE(mySelectionType, SQRT((data!D51-control!$C$8)^2+(myAspectRatio*(data!E51-control!$C$9))^2)<=control!$C$17, AND(data!D51<=control!$C$8,data!E51>=control!$C$9,data!D51>=control!$C$10,data!E51<=control!$C$11)) -> FALSE | D75: =IF($C75,data!D51,NA()) ->  | E75: =IF($C75,data!E51,NA()) ->  | F75: =IF($C75,data!F51,0) -> 0
B76: =data!B52 -> Zagreb | C76: =CHOOSE(mySelectionType, SQRT((data!D52-control!$C$8)^2+(myAspectRatio*(data!E52-control!$C$9))^2)<=control!$C$17, AND(data!D52<=control!$C$8,data!E52>=control!$C$9,data!D52>=control!$C$10,data!E52<=control!$C$11)) -> TRUE | D76: =IF($C76,data!D52,NA()) -> 45.81444 | E76: =IF($C76,data!E52,NA()) -> 15.97798 | F76: =IF($C76,data!F52,0) -> 698966
B77: =data!B53 -> Sarajevo | C77: =CHOOSE(mySelectionType, SQRT((data!D53-control!$C$8)^2+(myAspectRatio*(data!E53-control!$C$9))^2)<=control!$C$17, AND(data!D53<=control!$C$8,data!E53>=control!$C$9,data!D53>=control!$C$10,data!E53<=control!$C$11)) -> TRUE | D77: =IF($C77,data!D53,NA()) -> 43.84864 | E77: =IF($C77,data!E53,NA()) -> 18.35644 | F77: =IF($C77,data!F53,0) -> 696731
B78: =data!B54 -> Zaragoza | C78: =CHOOSE(mySelectionType, SQRT((data!D54-control!$C$8)^2+(myAspectRatio*(data!E54-control!$C$9))^2)<=control!$C$17, AND(data!D54<=control!$C$8,data!E54>=control!$C$9,data!D54>=control!$C$10,data!E54<=control!$C$11)) -> FALSE | D78: =IF($C78,data!D54,NA()) ->  | E78: =IF($C78,data!E54,NA()) ->  | F78: =IF($C78,data!F54,0) -> 0
B79: =data!B55 -> Athens | C79: =CHOOSE(mySelectionType, SQRT((data!D55-control!$C$8)^2+(myAspectRatio*(data!E55-control!$C$9))^2)<=control!$C$17, AND(data!D55<=control!$C$8,data!E55>=control!$C$9,data!D55>=control!$C$10,data!E55<=control!$C$11)) -> TRUE | D79: =IF($C79,data!D55,NA()) -> 37.97945 | E79: =IF($C79,data!E55,NA()) -> 23.71622 | F79: =IF($C79,data!F55,0) -> 664046
B80: =data!B56 -> Kryvyi Rih | C80: =CHOOSE(mySelectionType, SQRT((data!D56-control!$C$8)^2+(myAspectRatio*(data!E56-control!$C$9))^2)<=control!$C$17, AND(data!D56<=control!$C$8,data!E56>=control!$C$9,data!D56>=control!$C$10,data!E56<=control!$C$11)) -> TRUE | D80: =IF($C80,data!D56,NA()) -> 47.90966 | E80: =IF($C80,data!E56,NA()) -> 33.38044 | F80: =IF($C80,data!F56,0) -> 652380
B81: =data!B57 -> Frankfurt am Main | C81: =CHOOSE(mySelectionType, SQRT((data!D57-control!$C$8)^2+(myAspectRatio*(data!E57-control!$C$9))^2)<=control!$C$17, AND(data!D57<=control!$C$8,data!E57>=control!$C$9,data!D57>=control!$C$10,data!E57<=control!$C$11)) -> TRUE | D81: =IF($C81,data!D57,NA()) -> 50.11552 | E81: =IF($C81,data!E57,NA()) -> 8.68417 | F81: =IF($C81,data!F57,0) -> 650000
B82: =data!B58 -> Palermo | C82: =CHOOSE(mySelectionType, SQRT((data!D58-control!$C$8)^2+(myAspectRatio*(data!E58-control!$C$9))^2)<=control!$C$17, AND(data!D58<=control!$C$8,data!E58>=control!$C$9,data!D58>=control!$C$10,data!E58<=control!$C$11)) -> FALSE | D82: =IF($C82,data!D58,NA()) ->  | E82: =IF($C82,data!E58,NA()) ->  | F82: =IF($C82,data!F58,0) -> 0
B83: =data!B59 -> Chişinău | C83: =CHOOSE(mySelectionType, SQRT((data!D59-control!$C$8)^2+(myAspectRatio*(data!E59-control!$C$9))^2)<=control!$C$17, AND(data!D59<=control!$C$8,data!E59>=control!$C$9,data!D59>=control!$C$10,data!E59<=control!$C$11)) -> TRUE | D83: =IF($C83,data!D59,NA()) -> 47.00556 | E83: =IF($C83,data!E59,NA()) -> 28.8575 | F83: =IF($C83,data!F59,0) -> 635994
B84: =data!B60 -> Wrocław | C84: =CHOOSE(mySelectionType, SQRT((data!D60-control!$C$8)^2+(myAspectRatio*(data!E60-control!$C$9))^2)<=control!$C$17, AND(data!D60<=control!$C$8,data!E60>=control!$C$9,data!D60>=control!$C$10,data!E60<=control!$C$11)) -> TRUE | D84: =IF($C84,data!D60,NA()) -> 51.1 | E84: =IF($C84,data!E60,NA()) -> 17.03333 | F84: =IF($C84,data!F60,0) -> 634893
B85: =data!B61 -> Glasgow | C85: =CHOOSE(mySelectionType, SQRT((data!D61-control!$C$8)^2+(myAspectRatio*(data!E61-control!$C$9))^2)<=control!$C$17, AND(data!D61<=control!$C$8,data!E61>=control!$C$9,data!D61>=control!$C$10,data!E61<=control!$C$11)) -> FALSE | D85: =IF($C85,data!D61,NA()) ->  | E85: =IF($C85,data!E61,NA()) ->  | F85: =IF($C85,data!F61,0) -> 0
B86: =data!B62 -> Rotterdam | C86: =CHOOSE(mySelectionType, SQRT((data!D62-control!$C$8)^2+(myAspectRatio*(data!E62-control!$C$9))^2)<=control!$C$17, AND(data!D62<=control!$C$8,data!E62>=control!$C$9,data!D62>=control!$C$10,data!E62<=control!$C$11)) -> FALSE | D86: =IF($C86,data!D62,NA()) ->  | E86: =IF($C86,data!E62,NA()) ->  | F86: =IF($C86,data!F62,0) -> 0
B87: =data!B63 -> Essen | C87: =CHOOSE(mySelectionType, SQRT((data!D63-control!$C$8)^2+(myAspectRatio*(data!E63-control!$C$9))^2)<=control!$C$17, AND(data!D63<=control!$C$8,data!E63>=control!$C$9,data!D63>=control!$C$10,data!E63<=control!$C$11)) -> FALSE | D87: =IF($C87,data!D63,NA()) ->  | E87: =IF($C87,data!E63,NA()) ->  | F87: =IF($C87,data!F63,0) -> 0
B88: =data!B64 -> Kayseri | C88: =CHOOSE(mySelectionType, SQRT((data!D64-control!$C$8)^2+(myAspectRatio*(data!E64-control!$C$9))^2)<=control!$C$17, AND(data!D64<=control!$C$8,data!E64>=control!$C$9,data!D64>=control!$C$10,data!E64<=control!$C$11)) -> FALSE | D88: =IF($C88,data!D64,NA()) ->  | E88: =IF($C88,data!E64,NA()) ->  | F88: =IF($C88,data!F64,0) -> 0
B89: =data!B65 -> Stuttgart | C89: =CHOOSE(mySelectionType, SQRT((data!D65-control!$C$8)^2+(myAspectRatio*(data!E65-control!$C$9))^2)<=control!$C$17, AND(data!D65<=control!$C$8,data!E65>=control!$C$9,data!D65>=control!$C$10,data!E65<=control!$C$11)) -> TRUE | D89: =IF($C89,data!D65,NA()) -> 48.78232 | E89: =IF($C89,data!E65,NA()) -> 9.17702 | F89: =IF($C89,data!F65,0) -> 589793
B90: =data!B66 -> Dortmund | C90: =CHOOSE(mySelectionType, SQRT((data!D66-control!$C$8)^2+(myAspectRatio*(data!E66-control!$C$9))^2)<=control!$C$17, AND(data!D66<=control!$C$8,data!E66>=control!$C$9,data!D66>=control!$C$10,data!E66<=control!$C$11)) -> FALSE | D90: =IF($C90,data!D66,NA()) ->  | E90: =IF($C90,data!E66,NA()) ->  | F90: =IF($C90,data!F66,0) -> 0
B91: =data!B67 -> Genoa | C91: =CHOOSE(mySelectionType, SQRT((data!D67-control!$C$8)^2+(myAspectRatio*(data!E67-control!$C$9))^2)<=control!$C$17, AND(data!D67<=control!$C$8,data!E67>=control!$C$9,data!D67>=control!$C$10,data!E67<=control!$C$11)) -> TRUE | D91: =IF($C91,data!D67,NA()) -> 44.4264 | E91: =IF($C91,data!E67,NA()) -> 8.91519 | F91: =IF($C91,data!F67,0) -> 580223
B92: =data!B68 -> Oslo | C92: =CHOOSE(mySelectionType, SQRT((data!D68-control!$C$8)^2+(myAspectRatio*(data!E68-control!$C$9))^2)<=control!$C$17, AND(data!D68<=control!$C$8,data!E68>=control!$C$9,data!D68>=control!$C$10,data!E68<=control!$C$11)) -> FALSE | D92: =IF($C92,data!D68,NA()) ->  | E92: =IF($C92,data!E68,NA()) ->  | F92: =IF($C92,data!F68,0) -> 0
B93: =data!B69 -> Düsseldorf | C93: =CHOOSE(mySelectionType, SQRT((data!D69-control!$C$8)^2+(myAspectRatio*(data!E69-control!$C$9))^2)<=control!$C$17, AND(data!D69<=control!$C$8,data!E69>=control!$C$9,data!D69>=control!$C$10,data!E69<=control!$C$11)) -> FALSE | D93: =IF($C93,data!D69,NA()) ->  | E93: =IF($C93,data!E69,NA()) ->  | F93: =IF($C93,data!F69,0) -> 0
B94: =data!B70 -> Poznań | C94: =CHOOSE(mySelectionType, SQRT((data!D70-control!$C$8)^2+(myAspectRatio*(data!E70-control!$C$9))^2)<=control!$C$17, AND(data!D70<=control!$C$8,data!E70>=control!$C$9,data!D70>=control!$C$10,data!E70<=control!$C$11)) -> TRUE | D94: =IF($C94,data!D70,NA()) -> 52.40692 | E94: =IF($C94,data!E70,NA()) -> 16.92993 | F94: =IF($C94,data!F70,0) -> 570352
B95: =data!B71 -> Málaga | C95: =CHOOSE(mySelectionType, SQRT((data!D71-control!$C$8)^2+(myAspectRatio*(data!E71-control!$C$9))^2)<=control!$C$17, AND(data!D71<=control!$C$8,data!E71>=control!$C$9,data!D71>=control!$C$10,data!E71<=control!$C$11)) -> FALSE | D95: =IF($C95,data!D71,NA()) ->  | E95: =IF($C95,data!E71,NA()) ->  | F95: =IF($C95,data!F71,0) -> 0
B96: =data!B72 -> Helsinki | C96: =CHOOSE(mySelectionType, SQRT((data!D72-control!$C$8)^2+(myAspectRatio*(data!E72-control!$C$9))^2)<=control!$C$17, AND(data!D72<=control!$C$8,data!E72>=control!$C$9,data!D72>=control!$C$10,data!E72<=control!$C$11)) -> TRUE | D96: =IF($C96,data!D72,NA()) -> 60.16952 | E96: =IF($C96,data!E72,NA()) -> 24.93545 | F96: =IF($C96,data!F72,0) -> 558457
B97: =data!B73 -> Pristina | C97: =CHOOSE(mySelectionType, SQRT((data!D73-control!$C$8)^2+(myAspectRatio*(data!E73-control!$C$9))^2)<=control!$C$17, AND(data!D73<=control!$C$8,data!E73>=control!$C$9,data!D73>=control!$C$10,data!E73<=control!$C$11)) -> TRUE | D97: =IF($C97,data!D73,NA()) -> 42.67272 | E97: =IF($C97,data!E73,NA()) -> 21.16688 | F97: =IF($C97,data!F73,0) -> 550000
B98: =data!B74 -> Bremen | C98: =CHOOSE(mySelectionType, SQRT((data!D74-control!$C$8)^2+(myAspectRatio*(data!E74-control!$C$9))^2)<=control!$C$17, AND(data!D74<=control!$C$8,data!E74>=control!$C$9,data!D74>=control!$C$10,data!E74<=control!$C$11)) -> TRUE | D98: =IF($C98,data!D74,NA()) -> 53.07516 | E98: =IF($C98,data!E74,NA()) -> 8.80777 | F98: =IF($C98,data!F74,0) -> 546501
B99: =data!B75 -> Vilnius | C99: =CHOOSE(mySelectionType, SQRT((data!D75-control!$C$8)^2+(myAspectRatio*(data!E75-control!$C$9))^2)<=control!$C$17, AND(data!D75<=control!$C$8,data!E75>=control!$C$9,data!D75>=control!$C$10,data!E75<=control!$C$11)) -> TRUE | D99: =IF($C99,data!D75,NA()) -> 54.68916 | E99: =IF($C99,data!E75,NA()) -> 25.2798 | F99: =IF($C99,data!F75,0) -> 542366
B100: =data!B76 -> Mercin | C100: =CHOOSE(mySelectionType, SQRT((data!D76-control!$C$8)^2+(myAspectRatio*(data!E76-control!$C$9))^2)<=control!$C$17, AND(data!D76<=control!$C$8,data!E76>=control!$C$9,data!D76>=control!$C$10,data!E76<=control!$C$11)) -> FALSE | D100: =IF($C100,data!D76,NA()) ->  | E100: =IF($C100,data!E76,NA()) ->  | F100: =IF($C100,data!F76,0) -> 0
B101: =data!B77 -> Lisbon | C101: =CHOOSE(mySelectionType, SQRT((data!D77-control!$C$8)^2+(myAspectRatio*(data!E77-control!$C$9))^2)<=control!$C$17, AND(data!D77<=control!$C$8,data!E77>=control!$C$9,data!D77>=control!$C$10,data!E77<=control!$C$11)) -> FALSE | D101: =IF($C101,data!D77,NA()) ->  | E101: =IF($C101,data!E77,NA()) ->  | F101: =IF($C101,data!F77,0) -> 0
B102: =data!B78 -> Hannover | C102: =CHOOSE(mySelectionType, SQRT((data!D78-control!$C$8)^2+(myAspectRatio*(data!E78-control!$C$9))^2)<=control!$C$17, AND(data!D78<=control!$C$8,data!E78>=control!$C$9,data!D78>=control!$C$10,data!E78<=control!$C$11)) -> TRUE | D102: =IF($C102,data!D78,NA()) -> 52.37052 | E102: =IF($C102,data!E78,NA()) -> 9.73322 | F102: =IF($C102,data!F78,0) -> 515140
B103: =data!B79 -> Eskişehir | C103: =CHOOSE(mySelectionType, SQRT((data!D79-control!$C$8)^2+(myAspectRatio*(data!E79-control!$C$9))^2)<=control!$C$17, AND(data!D79<=control!$C$8,data!E79>=control!$C$9,data!D79>=control!$C$10,data!E79<=control!$C$11)) -> FALSE | D103: =IF($C103,data!D79,NA()) ->  | E103: =IF($C103,data!E79,NA()) ->  | F103: =IF($C103,data!F79,0) -> 0
B104: =data!B80 -> Mykolayiv | C104: =CHOOSE(mySelectionType, SQRT((data!D80-control!$C$8)^2+(myAspectRatio*(data!E80-control!$C$9))^2)<=control!$C$17, AND(data!D80<=control!$C$8,data!E80>=control!$C$9,data!D80>=control!$C$10,data!E80<=control!$C$11)) -> TRUE | D104: =IF($C104,data!D80,NA()) -> 46.96591 | E104: =IF($C104,data!E80,NA()) -> 31.9974 | F104: =IF($C104,data!F80,0) -> 510840
B105: =data!B81 -> Leipzig | C105: =CHOOSE(mySelectionType, SQRT((data!D81-control!$C$8)^2+(myAspectRatio*(data!E81-control!$C$9))^2)<=control!$C$17, AND(data!D81<=control!$C$8,data!E81>=control!$C$9,data!D81>=control!$C$10,data!E81<=control!$C$11)) -> TRUE | D105: =IF($C105,data!D81,NA()) -> 51.33962 | E105: =IF($C105,data!E81,NA()) -> 12.37129 | F105: =IF($C105,data!F81,0) -> 504971
B106: =data!B82 -> Duisburg | C106: =CHOOSE(mySelectionType, SQRT((data!D82-control!$C$8)^2+(myAspectRatio*(data!E82-control!$C$9))^2)<=control!$C$17, AND(data!D82<=control!$C$8,data!E82>=control!$C$9,data!D82>=control!$C$10,data!E82<=control!$C$11)) -> FALSE | D106: =IF($C106,data!D82,NA()) ->  | E106: =IF($C106,data!E82,NA()) ->  | F106: =IF($C106,data!F82,0) -> 0
B107: =data!B83 -> Göteborg | C107: =CHOOSE(mySelectionType, SQRT((data!D83-control!$C$8)^2+(myAspectRatio*(data!E83-control!$C$9))^2)<=control!$C$17, AND(data!D83<=control!$C$8,data!E83>=control!$C$9,data!D83>=control!$C$10,data!E83<=control!$C$11)) -> FALSE | D107: =IF($C107,data!D83,NA()) ->  | E107: =IF($C107,data!E83,NA()) ->  | F107: =IF($C107,data!F83,0) -> 0
B108: =data!B84 -> Nürnberg | C108: =CHOOSE(mySelectionType, SQRT((data!D84-control!$C$8)^2+(myAspectRatio*(data!E84-control!$C$9))^2)<=control!$C$17, AND(data!D84<=control!$C$8,data!E84>=control!$C$9,data!D84>=control!$C$10,data!E84<=control!$C$11)) -> TRUE | D108: =IF($C108,data!D84,NA()) -> 49.45421 | E108: =IF($C108,data!E84,NA()) -> 11.07752 | F108: =IF($C108,data!F84,0) -> 499237
B109: =data!B85 -> Dresden | C109: =CHOOSE(mySelectionType, SQRT((data!D85-control!$C$8)^2+(myAspectRatio*(data!E85-control!$C$9))^2)<=control!$C$17, AND(data!D85<=control!$C$8,data!E85>=control!$C$9,data!D85>=control!$C$10,data!E85<=control!$C$11)) -> TRUE | D109: =IF($C109,data!D85,NA()) -> 51.05089 | E109: =IF($C109,data!E85,NA()) -> 13.73832 | F109: =IF($C109,data!F85,0) -> 486854
B110: =data!B86 -> Mariupol | C110: =CHOOSE(mySelectionType, SQRT((data!D86-control!$C$8)^2+(myAspectRatio*(data!E86-control!$C$9))^2)<=control!$C$17, AND(data!D86<=control!$C$8,data!E86>=control!$C$9,data!D86>=control!$C$10,data!E86<=control!$C$11)) -> FALSE | D110: =IF($C110,data!D86,NA()) ->  | E110: =IF($C110,data!E86,NA()) ->  | F110: =IF($C110,data!F86,0) -> 0
B111: =data!B87 -> Gomel | C111: =CHOOSE(mySelectionType, SQRT((data!D87-control!$C$8)^2+(myAspectRatio*(data!E87-control!$C$9))^2)<=control!$C$17, AND(data!D87<=control!$C$8,data!E87>=control!$C$9,data!D87>=control!$C$10,data!E87<=control!$C$11)) -> TRUE | D111: =IF($C111,data!D87,NA()) -> 52.4345 | E111: =IF($C111,data!E87,NA()) -> 30.9754 | F111: =IF($C111,data!F87,0) -> 480951
B112: =data!B88 -> Skopje | C112: =CHOOSE(mySelectionType, SQRT((data!D88-control!$C$8)^2+(myAspectRatio*(data!E88-control!$C$9))^2)<=control!$C$17, AND(data!D88<=control!$C$8,data!E88>=control!$C$9,data!D88>=control!$C$10,data!E88<=control!$C$11)) -> TRUE | D112: =IF($C112,data!D88,NA()) -> 41.99646 | E112: =IF($C112,data!E88,NA()) -> 21.43141 | F112: =IF($C112,data!F88,0) -> 474889
B113: =data!B89 -> The Hague | C113: =CHOOSE(mySelectionType, SQRT((data!D89-control!$C$8)^2+(myAspectRatio*(data!E89-control!$C$9))^2)<=control!$C$17, AND(data!D89<=control!$C$8,data!E89>=control!$C$9,data!D89>=control!$C$10,data!E89<=control!$C$11)) -> FALSE | D113: =IF($C113,data!D89,NA()) ->  | E113: =IF($C113,data!E89,NA()) ->  | F113: =IF($C113,data!F89,0) -> 0
B114: =data!B90 -> Lyon | C114: =CHOOSE(mySelectionType, SQRT((data!D90-control!$C$8)^2+(myAspectRatio*(data!E90-control!$C$9))^2)<=control!$C$17, AND(data!D90<=control!$C$8,data!E90>=control!$C$9,data!D90>=control!$C$10,data!E90<=control!$C$11)) -> FALSE | D114: =IF($C114,data!D90,NA()) ->  | E114: =IF($C114,data!E90,NA()) ->  | F114: =IF($C114,data!F90,0) -> 0
B115: =data!B91 -> Liverpool | C115: =CHOOSE(mySelectionType, SQRT((data!D91-control!$C$8)^2+(myAspectRatio*(data!E91-control!$C$9))^2)<=control!$C$17, AND(data!D91<=control!$C$8,data!E91>=control!$C$9,data!D91>=control!$C$10,data!E91<=control!$C$11)) -> FALSE | D115: =IF($C115,data!D91,NA()) ->  | E115: =IF($C115,data!E91,NA()) ->  | F115: =IF($C115,data!F91,0) -> 0
B116: =data!B92 -> Gdańsk | C116: =CHOOSE(mySelectionType, SQRT((data!D92-control!$C$8)^2+(myAspectRatio*(data!E92-control!$C$9))^2)<=control!$C$17, AND(data!D92<=control!$C$8,data!E92>=control!$C$9,data!D92>=control!$C$10,data!E92<=control!$C$11)) -> TRUE | D116: =IF($C116,data!D92,NA()) -> 54.35205 | E116: =IF($C116,data!E92,NA()) -> 18.64637 | F116: =IF($C116,data!F92,0) -> 461865
B117: =data!B93 -> Antwerpen | C117: =CHOOSE(mySelectionType, SQRT((data!D93-control!$C$8)^2+(myAspectRatio*(data!E93-control!$C$9))^2)<=control!$C$17, AND(data!D93<=control!$C$8,data!E93>=control!$C$9,data!D93>=control!$C$10,data!E93<=control!$C$11)) -> FALSE | D117: =IF($C117,data!D93,NA()) ->  | E117: =IF($C117,data!E93,NA()) ->  | F117: =IF($C117,data!F93,0) -> 0
B118: =data!B94 -> Leeds | C118: =CHOOSE(mySelectionType, SQRT((data!D94-control!$C$8)^2+(myAspectRatio*(data!E94-control!$C$9))^2)<=control!$C$17, AND(data!D94<=control!$C$8,data!E94>=control!$C$9,data!D94>=control!$C$10,data!E94<=control!$C$11)) -> FALSE | D118: =IF($C118,data!D94,NA()) ->  | E118: =IF($C118,data!E94,NA()) ->  | F118: =IF($C118,data!F94,0) -> 0
B119: =data!B95 -> Luhansk | C119: =CHOOSE(mySelectionType, SQRT((data!D95-control!$C$8)^2+(myAspectRatio*(data!E95-control!$C$9))^2)<=control!$C$17, AND(data!D95<=control!$C$8,data!E95>=control!$C$9,data!D95>=control!$C$10,data!E95<=control!$C$11)) -> FALSE | D119: =IF($C119,data!D95,NA()) ->  | E119: =IF($C119,data!E95,NA()) ->  | F119: =IF($C119,data!F95,0) -> 0
B120: =data!B96 -> Şanlıurfa | C120: =CHOOSE(mySelectionType, SQRT((data!D96-control!$C$8)^2+(myAspectRatio*(data!E96-control!$C$9))^2)<=control!$C$17, AND(data!D96<=control!$C$8,data!E96>=control!$C$9,data!D96>=control!$C$10,data!E96<=control!$C$11)) -> FALSE | D120: =IF($C120,data!D96,NA()) ->  | E120: =IF($C120,data!E96,NA()) ->  | F120: =IF($C120,data!F96,0) -> 0
B121: =data!B97 -> Sheffield | C121: =CHOOSE(mySelectionType, SQRT((data!D97-control!$C$8)^2+(myAspectRatio*(data!E97-control!$C$9))^2)<=control!$C$17, AND(data!D97<=control!$C$8,data!E97>=control!$C$9,data!D97>=control!$C$10,data!E97<=control!$C$11)) -> FALSE | D121: =IF($C121,data!D97,NA()) ->  | E121: =IF($C121,data!E97,NA()) ->  | F121: =IF($C121,data!F97,0) -> 0
B122: =data!B98 -> Malatya | C122: =CHOOSE(mySelectionType, SQRT((data!D98-control!$C$8)^2+(myAspectRatio*(data!E98-control!$C$9))^2)<=control!$C$17, AND(data!D98<=control!$C$8,data!E98>=control!$C$9,data!D98>=control!$C$10,data!E98<=control!$C$11)) -> FALSE | D122: =IF($C122,data!D98,NA()) ->  | E122: =IF($C122,data!E98,NA()) ->  | F122: =IF($C122,data!F98,0) -> 0
B123: =data!B99 -> Murcia | C123: =CHOOSE(mySelectionType, SQRT((data!D99-control!$C$8)^2+(myAspectRatio*(data!E99-control!$C$9))^2)<=control!$C$17, AND(data!D99<=control!$C$8,data!E99>=control!$C$9,data!D99>=control!$C$10,data!E99<=control!$C$11)) -> FALSE | D123: =IF($C123,data!D99,NA()) ->  | E123: =IF($C123,data!E99,NA()) ->  | F123: =IF($C123,data!F99,0) -> 0
B124: =data!B100 -> Edinburgh | C124: =CHOOSE(mySelectionType, SQRT((data!D100-control!$C$8)^2+(myAspectRatio*(data!E100-control!$C$9))^2)<=control!$C$17, AND(data!D100<=control!$C$8,data!E100>=control!$C$9,data!D100>=control!$C$10,data!E100<=control!$C$11)) -> FALSE | D124: =IF($C124,data!D100,NA()) ->  | E124: =IF($C124,data!E100,NA()) ->  | F124: =IF($C124,data!F100,0) -> 0
B125: =data!B101 -> Toulouse | C125: =CHOOSE(mySelectionType, SQRT((data!D101-control!$C$8)^2+(myAspectRatio*(data!E101-control!$C$9))^2)<=control!$C$17, AND(data!D101<=control!$C$8,data!E101>=control!$C$9,data!D101>=control!$C$10,data!E101<=control!$C$11)) -> FALSE | D125: =IF($C125,data!D101,NA()) ->  | E125: =IF($C125,data!E101,NA()) ->  | F125: =IF($C125,data!F101,0) -> 0
B126: =data!B102 -> Bristol | C126: =CHOOSE(mySelectionType, SQRT((data!D102-control!$C$8)^2+(myAspectRatio*(data!E102-control!$C$9))^2)<=control!$C$17, AND(data!D102<=control!$C$8,data!E102>=control!$C$9,data!D102>=control!$C$10,data!E102<=control!$C$11)) -> FALSE | D126: =IF($C126,data!D102,NA()) ->  | E126: =IF($C126,data!E102,NA()) ->  | F126: =IF($C126,data!F102,0) -> 0
B127: =data!B103 -> Bratislava | C127: =CHOOSE(mySelectionType, SQRT((data!D103-control!$C$8)^2+(myAspectRatio*(data!E103-control!$C$9))^2)<=control!$C$17, AND(data!D103<=control!$C$8,data!E103>=control!$C$9,data!D103>=control!$C$10,data!E103<=control!$C$11)) -> TRUE | D127: =IF($C127,data!D103,NA()) -> 48.14816 | E127: =IF($C127,data!E103,NA()) -> 17.10674 | F127: =IF($C127,data!F103,0) -> 423737
B128: =data!B104 -> Szczecin | C128: =CHOOSE(mySelectionType, SQRT((data!D104-control!$C$8)^2+(myAspectRatio*(data!E104-control!$C$9))^2)<=control!$C$17, AND(data!D104<=control!$C$8,data!E104>=control!$C$9,data!D104>=control!$C$10,data!E104<=control!$C$11)) -> TRUE | D128: =IF($C128,data!D104,NA()) -> 53.42894 | E128: =IF($C128,data!E104,NA()) -> 14.55302 | F128: =IF($C128,data!F104,0) -> 407811
B129: =data!B105 -> Palma | C129: =CHOOSE(mySelectionType, SQRT((data!D105-control!$C$8)^2+(myAspectRatio*(data!E105-control!$C$9))^2)<=control!$C$17, AND(data!D105<=control!$C$8,data!E105>=control!$C$9,data!D105>=control!$C$10,data!E105<=control!$C$11)) -> FALSE | D129: =IF($C129,data!D105,NA()) ->  | E129: =IF($C129,data!E105,NA()) ->  | F129: =IF($C129,data!F105,0) -> 0
B130: =data!B106 -> Khmel’nyts’kyy | C130: =CHOOSE(mySelectionType, SQRT((data!D106-control!$C$8)^2+(myAspectRatio*(data!E106-control!$C$9))^2)<=control!$C$17, AND(data!D106<=control!$C$8,data!E106>=control!$C$9,data!D106>=control!$C$10,data!E106<=control!$C$11)) -> TRUE | D130: =IF($C130,data!D106,NA()) -> 49.42161 | E130: =IF($C130,data!E106,NA()) -> 26.99653 | F130: =IF($C130,data!F106,0) -> 398346
B131: =data!B107 -> Manchester | C131: =CHOOSE(mySelectionType, SQRT((data!D107-control!$C$8)^2+(myAspectRatio*(data!E107-control!$C$9))^2)<=control!$C$17, AND(data!D107<=control!$C$8,data!E107>=control!$C$9,data!D107>=control!$C$10,data!E107<=control!$C$11)) -> FALSE | D131: =IF($C131,data!D107,NA()) ->  | E131: =IF($C131,data!E107,NA()) ->  | F131: =IF($C131,data!F107,0) -> 0
B132: =data!B108 -> Samsun | C132: =CHOOSE(mySelectionType, SQRT((data!D108-control!$C$8)^2+(myAspectRatio*(data!E108-control!$C$9))^2)<=control!$C$17, AND(data!D108<=control!$C$8,data!E108>=control!$C$9,data!D108>=control!$C$10,data!E108<=control!$C$11)) -> FALSE | D132: =IF($C132,data!D108,NA()) ->  | E132: =IF($C132,data!E108,NA()) ->  | F132: =IF($C132,data!F108,0) -> 0
B133: =data!B109 -> Tallinn | C133: =CHOOSE(mySelectionType, SQRT((data!D109-control!$C$8)^2+(myAspectRatio*(data!E109-control!$C$9))^2)<=control!$C$17, AND(data!D109<=control!$C$8,data!E109>=control!$C$9,data!D109>=control!$C$10,data!E109<=control!$C$11)) -> TRUE | D133: =IF($C133,data!D109,NA()) -> 59.43696 | E133: =IF($C133,data!E109,NA()) -> 24.75353 | F133: =IF($C133,data!F109,0) -> 394024
B134: =data!B110 -> Bochum | C134: =CHOOSE(mySelectionType, SQRT((data!D110-control!$C$8)^2+(myAspectRatio*(data!E110-control!$C$9))^2)<=control!$C$17, AND(data!D110<=control!$C$8,data!E110>=control!$C$9,data!D110>=control!$C$10,data!E110<=control!$C$11)) -> FALSE | D134: =IF($C134,data!D110,NA()) ->  | E134: =IF($C134,data!E110,NA()) ->  | F134: =IF($C134,data!F110,0) -> 0
B135: =data!B111 -> Bochum-Hordel | C135: =CHOOSE(mySelectionType, SQRT((data!D111-control!$C$8)^2+(myAspectRatio*(data!E111-control!$C$9))^2)<=control!$C$17, AND(data!D111<=control!$C$8,data!E111>=control!$C$9,data!D111>=control!$C$10,data!E111<=control!$C$11)) -> FALSE | D135: =IF($C135,data!D111,NA()) ->  | E135: =IF($C135,data!E111,NA()) ->  | F135: =IF($C135,data!F111,0) -> 0
B136: =data!B112 -> Sevastopol | C136: =CHOOSE(mySelectionType, SQRT((data!D112-control!$C$8)^2+(myAspectRatio*(data!E112-control!$C$9))^2)<=control!$C$17, AND(data!D112<=control!$C$8,data!E112>=control!$C$9,data!D112>=control!$C$10,data!E112<=control!$C$11)) -> TRUE | D136: =IF($C136,data!D112,NA()) -> 44.58883 | E136: =IF($C136,data!E112,NA()) -> 33.5224 | F136: =IF($C136,data!F112,0) -> 379200
B137: =data!B113 -> Makiyivka | C137: =CHOOSE(mySelectionType, SQRT((data!D113-control!$C$8)^2+(myAspectRatio*(data!E113-control!$C$9))^2)<=control!$C$17, AND(data!D113<=control!$C$8,data!E113>=control!$C$9,data!D113>=control!$C$10,data!E113<=control!$C$11)) -> FALSE | D137: =IF($C137,data!D113,NA()) ->  | E137: =IF($C137,data!E113,NA()) ->  | F137: =IF($C137,data!F113,0) -> 0
B138: =data!B114 -> Kahramanmaraş | C138: =CHOOSE(mySelectionType, SQRT((data!D114-control!$C$8)^2+(myAspectRatio*(data!E114-control!$C$9))^2)<=control!$C$17, AND(data!D114<=control!$C$8,data!E114>=control!$C$9,data!D114>=control!$C$10,data!E114<=control!$C$11)) -> FALSE | D138: =IF($C138,data!D114,NA()) ->  | E138: =IF($C138,data!E114,NA()) ->  | F138: =IF($C138,data!F114,0) -> 0
B139: =data!B115 -> Tirana | C139: =CHOOSE(mySelectionType, SQRT((data!D115-control!$C$8)^2+(myAspectRatio*(data!E115-control!$C$9))^2)<=control!$C$17, AND(data!D115<=control!$C$8,data!E115>=control!$C$9,data!D115>=control!$C$10,data!E115<=control!$C$11)) -> TRUE | D139: =IF($C139,data!D115,NA()) -> 41.3275 | E139: =IF($C139,data!E115,NA()) -> 19.81889 | F139: =IF($C139,data!F115,0) -> 374801
B140: =data!B116 -> Kaunas | C140: =CHOOSE(mySelectionType, SQRT((data!D116-control!$C$8)^2+(myAspectRatio*(data!E116-control!$C$9))^2)<=control!$C$17, AND(data!D116<=control!$C$8,data!E116>=control!$C$9,data!D116>=control!$C$10,data!E116<=control!$C$11)) -> TRUE | D140: =IF($C140,data!D116,NA()) -> 54.9 | E140: =IF($C140,data!E116,NA()) -> 23.9 | F140: =IF($C140,data!F116,0) -> 374643
B141: =data!B117 -> Brno | C141: =CHOOSE(mySelectionType, SQRT((data!D117-control!$C$8)^2+(myAspectRatio*(data!E117-control!$C$9))^2)<=control!$C$17, AND(data!D117<=control!$C$8,data!E117>=control!$C$9,data!D117>=control!$C$10,data!E117<=control!$C$11)) -> TRUE | D141: =IF($C141,data!D117,NA()) -> 49.19522 | E141: =IF($C141,data!E117,NA()) -> 16.60796 | F141: =IF($C141,data!F117,0) -> 369559
B142: =data!B118 -> Mahilyow | C142: =CHOOSE(mySelectionType, SQRT((data!D118-control!$C$8)^2+(myAspectRatio*(data!E118-control!$C$9))^2)<=control!$C$17, AND(data!D118<=control!$C$8,data!E118>=control!$C$9,data!D118>=control!$C$10,data!E118<=control!$C$11)) -> TRUE | D142: =IF($C142,data!D118,NA()) -> 53.9168 | E142: =IF($C142,data!E118,NA()) -> 30.3449 | F142: =IF($C142,data!F118,0) -> 369200
B143: =data!B119 -> Bydgoszcz | C143: =CHOOSE(mySelectionType, SQRT((data!D119-control!$C$8)^2+(myAspectRatio*(data!E119-control!$C$9))^2)<=control!$C$17, AND(data!D119<=control!$C$8,data!E119>=control!$C$9,data!D119>=control!$C$10,data!E119<=control!$C$11)) -> TRUE | D143: =IF($C143,data!D119,NA()) -> 53.1235 | E143: =IF($C143,data!E119,NA()) -> 18.00762 | F143: =IF($C143,data!F119,0) -> 366452
B144: =data!B120 -> Bologna | C144: =CHOOSE(mySelectionType, SQRT((data!D120-control!$C$8)^2+(myAspectRatio*(data!E120-control!$C$9))^2)<=control!$C$17, AND(data!D120<=control!$C$8,data!E120>=control!$C$9,data!D120>=control!$C$10,data!E120<=control!$C$11)) -> TRUE | D144: =IF($C144,data!D120,NA()) -> 44.49381 | E144: =IF($C144,data!E120,NA()) -> 11.33875 | F144: =IF($C144,data!F120,0) -> 366133
B145: =data!B121 -> Wuppertal | C145: =CHOOSE(mySelectionType, SQRT((data!D121-control!$C$8)^2+(myAspectRatio*(data!E121-control!$C$9))^2)<=control!$C$17, AND(data!D121<=control!$C$8,data!E121>=control!$C$9,data!D121>=control!$C$10,data!E121<=control!$C$11)) -> FALSE | D145: =IF($C145,data!D121,NA()) ->  | E145: =IF($C145,data!E121,NA()) ->  | F145: =IF($C145,data!F121,0) -> 0
B146: =data!B122 -> Lublin | C146: =CHOOSE(mySelectionType, SQRT((data!D122-control!$C$8)^2+(myAspectRatio*(data!E122-control!$C$9))^2)<=control!$C$17, AND(data!D122<=control!$C$8,data!E122>=control!$C$9,data!D122>=control!$C$10,data!E122<=control!$C$11)) -> TRUE | D146: =IF($C146,data!D122,NA()) -> 51.25 | E146: =IF($C146,data!E122,NA()) -> 22.56667 | F146: =IF($C146,data!F122,0) -> 360044
B147: =data!B123 -> Simferopol | C147: =CHOOSE(mySelectionType, SQRT((data!D123-control!$C$8)^2+(myAspectRatio*(data!E123-control!$C$9))^2)<=control!$C$17, AND(data!D123<=control!$C$8,data!E123>=control!$C$9,data!D123>=control!$C$10,data!E123<=control!$C$11)) -> TRUE | D147: =IF($C147,data!D123,NA()) -> 44.95719 | E147: =IF($C147,data!E123,NA()) -> 34.11079 | F147: =IF($C147,data!F123,0) -> 358108
B148: =data!B124 -> Bilbao | C148: =CHOOSE(mySelectionType, SQRT((data!D124-control!$C$8)^2+(myAspectRatio*(data!E124-control!$C$9))^2)<=control!$C$17, AND(data!D124<=control!$C$8,data!E124>=control!$C$9,data!D124>=control!$C$10,data!E124<=control!$C$11)) -> FALSE | D148: =IF($C148,data!D124,NA()) ->  | E148: =IF($C148,data!E124,NA()) ->  | F148: =IF($C148,data!F124,0) -> 0
B149: =data!B125 -> Thessaloníki | C149: =CHOOSE(mySelectionType, SQRT((data!D125-control!$C$8)^2+(myAspectRatio*(data!E125-control!$C$9))^2)<=control!$C$17, AND(data!D125<=control!$C$8,data!E125>=control!$C$9,data!D125>=control!$C$10,data!E125<=control!$C$11)) -> TRUE | D149: =IF($C149,data!D125,NA()) -> 40.64361 | E149: =IF($C149,data!E125,NA()) -> 22.93086 | F149: =IF($C149,data!F125,0) -> 354290
B150: =data!B126 -> Vinnytsya | C150: =CHOOSE(mySelectionType, SQRT((data!D126-control!$C$8)^2+(myAspectRatio*(data!E126-control!$C$9))^2)<=control!$C$17, AND(data!D126<=control!$C$8,data!E126>=control!$C$9,data!D126>=control!$C$10,data!E126<=control!$C$11)) -> TRUE | D150: =IF($C150,data!D126,NA()) -> 49.23278 | E150: =IF($C150,data!E126,NA()) -> 28.48097 | F150: =IF($C150,data!F126,0) -> 352115
B151: =data!B127 -> Florence | C151: =CHOOSE(mySelectionType, SQRT((data!D127-control!$C$8)^2+(myAspectRatio*(data!E127-control!$C$9))^2)<=control!$C$17, AND(data!D127<=control!$C$8,data!E127>=control!$C$9,data!D127>=control!$C$10,data!E127<=control!$C$11)) -> TRUE | D151: =IF($C151,data!D127,NA()) -> 43.77925 | E151: =IF($C151,data!E127,NA()) -> 11.24626 | F151: =IF($C151,data!F127,0) -> 349296
B152: =data!B128 -> Vitebsk | C152: =CHOOSE(mySelectionType, SQRT((data!D128-control!$C$8)^2+(myAspectRatio*(data!E128-control!$C$9))^2)<=control!$C$17, AND(data!D128<=control!$C$8,data!E128>=control!$C$9,data!D128>=control!$C$10,data!E128<=control!$C$11)) -> TRUE | D152: =IF($C152,data!D128,NA()) -> 55.1904 | E152: =IF($C152,data!E128,NA()) -> 30.2049 | F152: =IF($C152,data!F128,0) -> 342700
B153: =data!B129 -> Zürich | C153: =CHOOSE(mySelectionType, SQRT((data!D129-control!$C$8)^2+(myAspectRatio*(data!E129-control!$C$9))^2)<=control!$C$17, AND(data!D129<=control!$C$8,data!E129>=control!$C$9,data!D129>=control!$C$10,data!E129<=control!$C$11)) -> TRUE | D153: =IF($C153,data!D129,NA()) -> 47.36667 | E153: =IF($C153,data!E129,NA()) -> 8.55 | F153: =IF($C153,data!F129,0) -> 341730
B154: =data!B130 -> Plovdiv | C154: =CHOOSE(mySelectionType, SQRT((data!D130-control!$C$8)^2+(myAspectRatio*(data!E130-control!$C$9))^2)<=control!$C$17, AND(data!D130<=control!$C$8,data!E130>=control!$C$9,data!D130>=control!$C$10,data!E130<=control!$C$11)) -> TRUE | D154: =IF($C154,data!D130,NA()) -> 42.15 | E154: =IF($C154,data!E130,NA()) -> 24.75 | F154: =IF($C154,data!F130,0) -> 340494
B155: =data!B131 -> Leicester | C155: =CHOOSE(mySelectionType, SQRT((data!D131-control!$C$8)^2+(myAspectRatio*(data!E131-control!$C$9))^2)<=control!$C$17, AND(data!D131<=control!$C$8,data!E131>=control!$C$9,data!D131>=control!$C$10,data!E131<=control!$C$11)) -> FALSE | D155: =IF($C155,data!D131,NA()) ->  | E155: =IF($C155,data!E131,NA()) ->  | F155: =IF($C155,data!F131,0) -> 0
B156: =data!B132 -> Nice | C156: =CHOOSE(mySelectionType, SQRT((data!D132-control!$C$8)^2+(myAspectRatio*(data!E132-control!$C$9))^2)<=control!$C$17, AND(data!D132<=control!$C$8,data!E132>=control!$C$9,data!D132>=control!$C$10,data!E132<=control!$C$11)) -> FALSE | D156: =IF($C156,data!D132,NA()) ->  | E156: =IF($C156,data!E132,NA()) ->  | F156: =IF($C156,data!F132,0) -> 0
B157: =data!B133 -> Alicante | C157: =CHOOSE(mySelectionType, SQRT((data!D133-control!$C$8)^2+(myAspectRatio*(data!E133-control!$C$9))^2)<=control!$C$17, AND(data!D133<=control!$C$8,data!E133>=control!$C$9,data!D133>=control!$C$10,data!E133<=control!$C$11)) -> FALSE | D157: =IF($C157,data!D133,NA()) ->  | E157: =IF($C157,data!E133,NA()) ->  | F157: =IF($C157,data!F133,0) -> 0
B158: =data!B134 -> Bielefeld | C158: =CHOOSE(mySelectionType, SQRT((data!D134-control!$C$8)^2+(myAspectRatio*(data!E134-control!$C$9))^2)<=control!$C$17, AND(data!D134<=control!$C$8,data!E134>=control!$C$9,data!D134>=control!$C$10,data!E134<=control!$C$11)) -> TRUE | D158: =IF($C158,data!D134,NA()) -> 52.03333 | E158: =IF($C158,data!E134,NA()) -> 8.53333 | F158: =IF($C158,data!F134,0) -> 331906
B159: =data!B135 -> Córdoba | C159: =CHOOSE(mySelectionType, SQRT((data!D135-control!$C$8)^2+(myAspectRatio*(data!E135-control!$C$9))^2)<=control!$C$17, AND(data!D135<=control!$C$8,data!E135>=control!$C$9,data!D135>=control!$C$10,data!E135<=control!$C$11)) -> FALSE | D159: =IF($C159,data!D135,NA()) ->  | E159: =IF($C159,data!E135,NA()) ->  | F159: =IF($C159,data!F135,0) -> 0
B160: =data!B136 -> Kherson | C160: =CHOOSE(mySelectionType, SQRT((data!D136-control!$C$8)^2+(myAspectRatio*(data!E136-control!$C$9))^2)<=control!$C$17, AND(data!D136<=control!$C$8,data!E136>=control!$C$9,data!D136>=control!$C$10,data!E136<=control!$C$11)) -> TRUE | D160: =IF($C160,data!D136,NA()) -> 46.65581 | E160: =IF($C160,data!E136,NA()) -> 32.6178 | F160: =IF($C160,data!F136,0) -> 320477
B161: =data!B137 -> Iaşi | C161: =CHOOSE(mySelectionType, SQRT((data!D137-control!$C$8)^2+(myAspectRatio*(data!E137-control!$C$9))^2)<=control!$C$17, AND(data!D137<=control!$C$8,data!E137>=control!$C$9,data!D137>=control!$C$10,data!E137<=control!$C$11)) -> TRUE | D161: =IF($C161,data!D137,NA()) -> 47.16667 | E161: =IF($C161,data!E137,NA()) -> 27.6 | F161: =IF($C161,data!F137,0) -> 318012
B162: =data!B138 -> Valladolid | C162: =CHOOSE(mySelectionType, SQRT((data!D138-control!$C$8)^2+(myAspectRatio*(data!E138-control!$C$9))^2)<=control!$C$17, AND(data!D138<=control!$C$8,data!E138>=control!$C$9,data!D138>=control!$C$10,data!E138<=control!$C$11)) -> FALSE | D162: =IF($C162,data!D138,NA()) ->  | E162: =IF($C162,data!E138,NA()) ->  | F162: =IF($C162,data!F138,0) -> 0
B163: =data!B139 -> Poltava | C163: =CHOOSE(mySelectionType, SQRT((data!D139-control!$C$8)^2+(myAspectRatio*(data!E139-control!$C$9))^2)<=control!$C$17, AND(data!D139<=control!$C$8,data!E139>=control!$C$9,data!D139>=control!$C$10,data!E139<=control!$C$11)) -> TRUE | D163: =IF($C163,data!D139,NA()) -> 49.59373 | E163: =IF($C163,data!E139,NA()) -> 34.54073 | F163: =IF($C163,data!F139,0) -> 317847
B164: =data!B140 -> Hrodna | C164: =CHOOSE(mySelectionType, SQRT((data!D140-control!$C$8)^2+(myAspectRatio*(data!E140-control!$C$9))^2)<=control!$C$17, AND(data!D140<=control!$C$8,data!E140>=control!$C$9,data!D140>=control!$C$10,data!E140<=control!$C$11)) -> TRUE | D164: =IF($C164,data!D140,NA()) -> 53.6884 | E164: =IF($C164,data!E140,NA()) -> 23.8258 | F164: =IF($C164,data!F140,0) -> 317365
B165: =data!B141 -> Katowice | C165: =CHOOSE(mySelectionType, SQRT((data!D141-control!$C$8)^2+(myAspectRatio*(data!E141-control!$C$9))^2)<=control!$C$17, AND(data!D141<=control!$C$8,data!E141>=control!$C$9,data!D141>=control!$C$10,data!E141<=control!$C$11)) -> TRUE | D165: =IF($C165,data!D141,NA()) -> 50.25841 | E165: =IF($C165,data!E141,NA()) -> 19.02754 | F165: =IF($C165,data!F141,0) -> 317316
B166: =data!B142 -> Cluj-Napoca | C166: =CHOOSE(mySelectionType, SQRT((data!D142-control!$C$8)^2+(myAspectRatio*(data!E142-control!$C$9))^2)<=control!$C$17, AND(data!D142<=control!$C$8,data!E142>=control!$C$9,data!D142>=control!$C$10,data!E142<=control!$C$11)) -> TRUE | D166: =IF($C166,data!D142,NA()) -> 46.76667 | E166: =IF($C166,data!E142,NA()) -> 23.6 | F166: =IF($C166,data!F142,0) -> 316748
B167: =data!B143 -> Timişoara | C167: =CHOOSE(mySelectionType, SQRT((data!D143-control!$C$8)^2+(myAspectRatio*(data!E143-control!$C$9))^2)<=control!$C$17, AND(data!D143<=control!$C$8,data!E143>=control!$C$9,data!D143>=control!$C$10,data!E143<=control!$C$11)) -> TRUE | D167: =IF($C167,data!D143,NA()) -> 45.75372 | E167: =IF($C167,data!E143,NA()) -> 21.22571 | F167: =IF($C167,data!F143,0) -> 315053
B168: =data!B144 -> Denizli | C168: =CHOOSE(mySelectionType, SQRT((data!D144-control!$C$8)^2+(myAspectRatio*(data!E144-control!$C$9))^2)<=control!$C$17, AND(data!D144<=control!$C$8,data!E144>=control!$C$9,data!D144>=control!$C$10,data!E144<=control!$C$11)) -> FALSE | D168: =IF($C168,data!D144,NA()) ->  | E168: =IF($C168,data!E144,NA()) ->  | F168: =IF($C168,data!F144,0) -> 0
B169: =data!B145 -> Bonn | C169: =CHOOSE(mySelectionType, SQRT((data!D145-control!$C$8)^2+(myAspectRatio*(data!E145-control!$C$9))^2)<=control!$C$17, AND(data!D145<=control!$C$8,data!E145>=control!$C$9,data!D145>=control!$C$10,data!E145<=control!$C$11)) -> FALSE | D169: =IF($C169,data!D145,NA()) ->  | E169: =IF($C169,data!E145,NA()) ->  | F169: =IF($C169,data!F145,0) -> 0
B170: =data!B146 -> Ostrava | C170: =CHOOSE(mySelectionType, SQRT((data!D146-control!$C$8)^2+(myAspectRatio*(data!E146-control!$C$9))^2)<=control!$C$17, AND(data!D146<=control!$C$8,data!E146>=control!$C$9,data!D146>=control!$C$10,data!E146<=control!$C$11)) -> TRUE | D170: =IF($C170,data!D146,NA()) -> 49.83465 | E170: =IF($C170,data!E146,NA()) -> 18.28204 | F170: =IF($C170,data!F146,0) -> 313088
B171: =data!B147 -> Varna | C171: =CHOOSE(mySelectionType, SQRT((data!D147-control!$C$8)^2+(myAspectRatio*(data!E147-control!$C$9))^2)<=control!$C$17, AND(data!D147<=control!$C$8,data!E147>=control!$C$9,data!D147>=control!$C$10,data!E147<=control!$C$11)) -> TRUE | D171: =IF($C171,data!D147,NA()) -> 43.21667 | E171: =IF($C171,data!E147,NA()) -> 27.91667 | F171: =IF($C171,data!F147,0) -> 312770
B172: =data!B148 -> Coventry | C172: =CHOOSE(mySelectionType, SQRT((data!D148-control!$C$8)^2+(myAspectRatio*(data!E148-control!$C$9))^2)<=control!$C$17, AND(data!D148<=control!$C$8,data!E148>=control!$C$9,data!D148>=control!$C$10,data!E148<=control!$C$11)) -> FALSE | D172: =IF($C172,data!D148,NA()) ->  | E172: =IF($C172,data!E148,NA()) ->  | F172: =IF($C172,data!F148,0) -> 0
B173: =data!B149 -> Mannheim | C173: =CHOOSE(mySelectionType, SQRT((data!D149-control!$C$8)^2+(myAspectRatio*(data!E149-control!$C$9))^2)<=control!$C$17, AND(data!D149<=control!$C$8,data!E149>=control!$C$9,data!D149>=control!$C$10,data!E149<=control!$C$11)) -> TRUE | D173: =IF($C173,data!D149,NA()) -> 49.49671 | E173: =IF($C173,data!E149,NA()) -> 8.47955 | F173: =IF($C173,data!F149,0) -> 307960
B174: =data!B150 -> Chernihiv | C174: =CHOOSE(mySelectionType, SQRT((data!D150-control!$C$8)^2+(myAspectRatio*(data!E150-control!$C$9))^2)<=control!$C$17, AND(data!D150<=control!$C$8,data!E150>=control!$C$9,data!D150>=control!$C$10,data!E150<=control!$C$11)) -> TRUE | D174: =IF($C174,data!D150,NA()) -> 51.50551 | E174: =IF($C174,data!E150,NA()) -> 31.28487 | F174: =IF($C174,data!F150,0) -> 307684
B175: =data!B151 -> Craiova | C175: =CHOOSE(mySelectionType, SQRT((data!D151-control!$C$8)^2+(myAspectRatio*(data!E151-control!$C$9))^2)<=control!$C$17, AND(data!D151<=control!$C$8,data!E151>=control!$C$9,data!D151>=control!$C$10,data!E151<=control!$C$11)) -> TRUE | D175: =IF($C175,data!D151,NA()) -> 44.31667 | E175: =IF($C175,data!E151,NA()) -> 23.8 | F175: =IF($C175,data!F151,0) -> 304142
B176: =data!B152 -> Constanţa | C176: =CHOOSE(mySelectionType, SQRT((data!D152-control!$C$8)^2+(myAspectRatio*(data!E152-control!$C$9))^2)<=control!$C$17, AND(data!D152<=control!$C$8,data!E152>=control!$C$9,data!D152>=control!$C$10,data!E152<=control!$C$11)) -> TRUE | D176: =IF($C176,data!D152,NA()) -> 44.18073 | E176: =IF($C176,data!E152,NA()) -> 28.63432 | F176: =IF($C176,data!F152,0) -> 303399
B177: =data!B153 -> Hull | C177: =CHOOSE(mySelectionType, SQRT((data!D153-control!$C$8)^2+(myAspectRatio*(data!E153-control!$C$9))^2)<=control!$C$17, AND(data!D153<=control!$C$8,data!E153>=control!$C$9,data!D153>=control!$C$10,data!E153<=control!$C$11)) -> FALSE | D177: =IF($C177,data!D153,NA()) ->  | E177: =IF($C177,data!E153,NA()) ->  | F177: =IF($C177,data!F153,0) -> 0
B178: =data!B154 -> Cardiff | C178: =CHOOSE(mySelectionType, SQRT((data!D154-control!$C$8)^2+(myAspectRatio*(data!E154-control!$C$9))^2)<=control!$C$17, AND(data!D154<=control!$C$8,data!E154>=control!$C$9,data!D154>=control!$C$10,data!E154<=control!$C$11)) -> FALSE | D178: =IF($C178,data!D154,NA()) ->  | E178: =IF($C178,data!E154,NA()) ->  | F178: =IF($C178,data!F154,0) -> 0
B179: =data!B155 -> Brest | C179: =CHOOSE(mySelectionType, SQRT((data!D155-control!$C$8)^2+(myAspectRatio*(data!E155-control!$C$9))^2)<=control!$C$17, AND(data!D155<=control!$C$8,data!E155>=control!$C$9,data!D155>=control!$C$10,data!E155<=control!$C$11)) -> TRUE | D179: =IF($C179,data!D155,NA()) -> 52.09755 | E179: =IF($C179,data!E155,NA()) -> 23.68775 | F179: =IF($C179,data!F155,0) -> 300715
B180: =data!B156 -> Bradford | C180: =CHOOSE(mySelectionType, SQRT((data!D156-control!$C$8)^2+(myAspectRatio*(data!E156-control!$C$9))^2)<=control!$C$17, AND(data!D156<=control!$C$8,data!E156>=control!$C$9,data!D156>=control!$C$10,data!E156<=control!$C$11)) -> FALSE | D180: =IF($C180,data!D156,NA()) ->  | E180: =IF($C180,data!E156,NA()) ->  | F180: =IF($C180,data!F156,0) -> 0
B181: =data!B157 -> Elazığ | C181: =CHOOSE(mySelectionType, SQRT((data!D157-control!$C$8)^2+(myAspectRatio*(data!E157-control!$C$9))^2)<=control!$C$17, AND(data!D157<=control!$C$8,data!E157>=control!$C$9,data!D157>=control!$C$10,data!E157<=control!$C$11)) -> FALSE | D181: =IF($C181,data!D157,NA()) ->  | E181: =IF($C181,data!E157,NA()) ->  | F181: =IF($C181,data!F157,0) -> 0
B182: =data!B158 -> Cherkasy | C182: =CHOOSE(mySelectionType, SQRT((data!D158-control!$C$8)^2+(myAspectRatio*(data!E158-control!$C$9))^2)<=control!$C$17, AND(data!D158<=control!$C$8,data!E158>=control!$C$9,data!D158>=control!$C$10,data!E158<=control!$C$11)) -> TRUE | D182: =IF($C182,data!D158,NA()) -> 49.42854 | E182: =IF($C182,data!E158,NA()) -> 32.06207 | F182: =IF($C182,data!F158,0) -> 297568
B183: =data!B159 -> Vigo | C183: =CHOOSE(mySelectionType, SQRT((data!D159-control!$C$8)^2+(myAspectRatio*(data!E159-control!$C$9))^2)<=control!$C$17, AND(data!D159<=control!$C$8,data!E159>=control!$C$9,data!D159>=control!$C$10,data!E159<=control!$C$11)) -> FALSE | D183: =IF($C183,data!D159,NA()) ->  | E183: =IF($C183,data!E159,NA()) ->  | F183: =IF($C183,data!F159,0) -> 0
B184: =data!B160 -> Sumy | C184: =CHOOSE(mySelectionType, SQRT((data!D160-control!$C$8)^2+(myAspectRatio*(data!E160-control!$C$9))^2)<=control!$C$17, AND(data!D160<=control!$C$8,data!E160>=control!$C$9,data!D160>=control!$C$10,data!E160<=control!$C$11)) -> TRUE | D184: =IF($C184,data!D160,NA()) -> 50.9216 | E184: =IF($C184,data!E160,NA()) -> 34.80029 | F184: =IF($C184,data!F160,0) -> 294456
B185: =data!B161 -> Galaţi | C185: =CHOOSE(mySelectionType, SQRT((data!D161-control!$C$8)^2+(myAspectRatio*(data!E161-control!$C$9))^2)<=control!$C$17, AND(data!D161<=control!$C$8,data!E161>=control!$C$9,data!D161>=control!$C$10,data!E161<=control!$C$11)) -> TRUE | D185: =IF($C185,data!D161,NA()) -> 45.45 | E185: =IF($C185,data!E161,NA()) -> 28.05 | F185: =IF($C185,data!F161,0) -> 294087
B186: =data!B162 -> Białystok | C186: =CHOOSE(mySelectionType, SQRT((data!D162-control!$C$8)^2+(myAspectRatio*(data!E162-control!$C$9))^2)<=control!$C$17, AND(data!D162<=control!$C$8,data!E162>=control!$C$9,data!D162>=control!$C$10,data!E162<=control!$C$11)) -> TRUE | D186: =IF($C186,data!D162,NA()) -> 53.13333 | E186: =IF($C186,data!E162,NA()) -> 23.16433 | F186: =IF($C186,data!F162,0) -> 291855
B187: =data!B163 -> Catania | C187: =CHOOSE(mySelectionType, SQRT((data!D163-control!$C$8)^2+(myAspectRatio*(data!E163-control!$C$9))^2)<=control!$C$17, AND(data!D163<=control!$C$8,data!E163>=control!$C$9,data!D163>=control!$C$10,data!E163<=control!$C$11)) -> FALSE | D187: =IF($C187,data!D163,NA()) ->  | E187: =IF($C187,data!E163,NA()) ->  | F187: =IF($C187,data!F163,0) -> 0
B188: =data!B164 -> Utrecht | C188: =CHOOSE(mySelectionType, SQRT((data!D164-control!$C$8)^2+(myAspectRatio*(data!E164-control!$C$9))^2)<=control!$C$17, AND(data!D164<=control!$C$8,data!E164>=control!$C$9,data!D164>=control!$C$10,data!E164<=control!$C$11)) -> FALSE | D188: =IF($C188,data!D164,NA()) ->  | E188: =IF($C188,data!E164,NA()) ->  | F188: =IF($C188,data!F164,0) -> 0
B189: =data!B165 -> Adapazarı | C189: =CHOOSE(mySelectionType, SQRT((data!D165-control!$C$8)^2+(myAspectRatio*(data!E165-control!$C$9))^2)<=control!$C$17, AND(data!D165<=control!$C$8,data!E165>=control!$C$9,data!D165>=control!$C$10,data!E165<=control!$C$11)) -> TRUE | D189: =IF($C189,data!D165,NA()) -> 40.78056 | E189: =IF($C189,data!E165,NA()) -> 30.40333 | F189: =IF($C189,data!F165,0) -> 286787
B190: =data!B166 -> Karlsruhe | C190: =CHOOSE(mySelectionType, SQRT((data!D166-control!$C$8)^2+(myAspectRatio*(data!E166-control!$C$9))^2)<=control!$C$17, AND(data!D166<=control!$C$8,data!E166>=control!$C$9,data!D166>=control!$C$10,data!E166<=control!$C$11)) -> TRUE | D190: =IF($C190,data!D166,NA()) -> 49.00937 | E190: =IF($C190,data!E166,NA()) -> 8.40444 | F190: =IF($C190,data!F166,0) -> 283799
B191: =data!B167 -> Zhytomyr | C191: =CHOOSE(mySelectionType, SQRT((data!D167-control!$C$8)^2+(myAspectRatio*(data!E167-control!$C$9))^2)<=control!$C$17, AND(data!D167<=control!$C$8,data!E167>=control!$C$9,data!D167>=control!$C$10,data!E167<=control!$C$11)) -> TRUE | D191: =IF($C191,data!D167,NA()) -> 50.26487 | E191: =IF($C191,data!E167,NA()) -> 28.67669 | F191: =IF($C191,data!F167,0) -> 282192
B192: =data!B168 -> Gebze | C192: =CHOOSE(mySelectionType, SQRT((data!D168-control!$C$8)^2+(myAspectRatio*(data!E168-control!$C$9))^2)<=control!$C$17, AND(data!D168<=control!$C$8,data!E168>=control!$C$9,data!D168>=control!$C$10,data!E168<=control!$C$11)) -> TRUE | D192: =IF($C192,data!D168,NA()) -> 40.80276 | E192: =IF($C192,data!E168,NA()) -> 29.43068 | F192: =IF($C192,data!F168,0) -> 281436
B193: =data!B169 -> Horlivka | C193: =CHOOSE(mySelectionType, SQRT((data!D169-control!$C$8)^2+(myAspectRatio*(data!E169-control!$C$9))^2)<=control!$C$17, AND(data!D169<=control!$C$8,data!E169>=control!$C$9,data!D169>=control!$C$10,data!E169<=control!$C$11)) -> FALSE | D193: =IF($C193,data!D169,NA()) ->  | E193: =IF($C193,data!E169,NA()) ->  | F193: =IF($C193,data!F169,0) -> 0
B194: =data!B170 -> Gijón | C194: =CHOOSE(mySelectionType, SQRT((data!D170-control!$C$8)^2+(myAspectRatio*(data!E170-control!$C$9))^2)<=control!$C$17, AND(data!D170<=control!$C$8,data!E170>=control!$C$9,data!D170>=control!$C$10,data!E170<=control!$C$11)) -> FALSE | D194: =IF($C194,data!D170,NA()) ->  | E194: =IF($C194,data!E170,NA()) ->  | F194: =IF($C194,data!F170,0) -> 0
B195: =data!B171 -> Bari | C195: =CHOOSE(mySelectionType, SQRT((data!D171-control!$C$8)^2+(myAspectRatio*(data!E171-control!$C$9))^2)<=control!$C$17, AND(data!D171<=control!$C$8,data!E171>=control!$C$9,data!D171>=control!$C$10,data!E171<=control!$C$11)) -> TRUE | D195: =IF($C195,data!D171,NA()) -> 41.11148 | E195: =IF($C195,data!E171,NA()) -> 16.8554 | F195: =IF($C195,data!F171,0) -> 277387
B196: =data!B172 -> Nantes | C196: =CHOOSE(mySelectionType, SQRT((data!D172-control!$C$8)^2+(myAspectRatio*(data!E172-control!$C$9))^2)<=control!$C$17, AND(data!D172<=control!$C$8,data!E172>=control!$C$9,data!D172>=control!$C$10,data!E172<=control!$C$11)) -> FALSE | D196: =IF($C196,data!D172,NA()) ->  | E196: =IF($C196,data!E172,NA()) ->  | F196: =IF($C196,data!F172,0) -> 0
B197: =data!B173 -> Braşov | C197: =CHOOSE(mySelectionType, SQRT((data!D173-control!$C$8)^2+(myAspectRatio*(data!E173-control!$C$9))^2)<=control!$C$17, AND(data!D173<=control!$C$8,data!E173>=control!$C$9,data!D173>=control!$C$10,data!E173<=control!$C$11)) -> TRUE | D197: =IF($C197,data!D173,NA()) -> 45.64861 | E197: =IF($C197,data!E173,NA()) -> 25.60613 | F197: =IF($C197,data!F173,0) -> 276088
B198: =data!B174 -> Strasbourg | C198: =CHOOSE(mySelectionType, SQRT((data!D174-control!$C$8)^2+(myAspectRatio*(data!E174-control!$C$9))^2)<=control!$C$17, AND(data!D174<=control!$C$8,data!E174>=control!$C$9,data!D174>=control!$C$10,data!E174<=control!$C$11)) -> TRUE | D198: =IF($C198,data!D174,NA()) -> 48.58392 | E198: =IF($C198,data!E174,NA()) -> 7.74553 | F198: =IF($C198,data!F174,0) -> 274845
B199: =data!B175 -> Belfast | C199: =CHOOSE(mySelectionType, SQRT((data!D175-control!$C$8)^2+(myAspectRatio*(data!E175-control!$C$9))^2)<=control!$C$17, AND(data!D175<=control!$C$8,data!E175>=control!$C$9,data!D175>=control!$C$10,data!E175<=control!$C$11)) -> FALSE | D199: =IF($C199,data!D175,NA()) ->  | E199: =IF($C199,data!E175,NA()) ->  | F199: =IF($C199,data!F175,0) -> 0
B200: =data!B176 -> Wiesbaden | C200: =CHOOSE(mySelectionType, SQRT((data!D176-control!$C$8)^2+(myAspectRatio*(data!E176-control!$C$9))^2)<=control!$C$17, AND(data!D176<=control!$C$8,data!E176>=control!$C$9,data!D176>=control!$C$10,data!E176<=control!$C$11)) -> TRUE | D200: =IF($C200,data!D176,NA()) -> 50.08258 | E200: =IF($C200,data!E176,NA()) -> 8.24932 | F200: =IF($C200,data!F176,0) -> 272432
B201: =data!B177 -> Ljubljana | C201: =CHOOSE(mySelectionType, SQRT((data!D177-control!$C$8)^2+(myAspectRatio*(data!E177-control!$C$9))^2)<=control!$C$17, AND(data!D177<=control!$C$8,data!E177>=control!$C$9,data!D177>=control!$C$10,data!E177<=control!$C$11)) -> TRUE | D201: =IF($C201,data!D177,NA()) -> 46.05108 | E201: =IF($C201,data!E177,NA()) -> 14.50513 | F201: =IF($C201,data!F177,0) -> 272220
B202: =data!B178 -> Münster | C202: =CHOOSE(mySelectionType, SQRT((data!D178-control!$C$8)^2+(myAspectRatio*(data!E178-control!$C$9))^2)<=control!$C$17, AND(data!D178<=control!$C$8,data!E178>=control!$C$9,data!D178>=control!$C$10,data!E178<=control!$C$11)) -> FALSE | D202: =IF($C202,data!D178,NA()) ->  | E202: =IF($C202,data!E178,NA()) ->  | F202: =IF($C202,data!F178,0) -> 0
B203: =data!B179 -> Gelsenkirchen | C203: =CHOOSE(mySelectionType, SQRT((data!D179-control!$C$8)^2+(myAspectRatio*(data!E179-control!$C$9))^2)<=control!$C$17, AND(data!D179<=control!$C$8,data!E179>=control!$C$9,data!D179>=control!$C$10,data!E179<=control!$C$11)) -> FALSE | D203: =IF($C203,data!D179,NA()) ->  | E203: =IF($C203,data!E179,NA()) ->  | F203: =IF($C203,data!F179,0) -> 0
B204: =data!B180 -> Aachen | C204: =CHOOSE(mySelectionType, SQRT((data!D180-control!$C$8)^2+(myAspectRatio*(data!E180-control!$C$9))^2)<=control!$C$17, AND(data!D180<=control!$C$8,data!E180>=control!$C$9,data!D180>=control!$C$10,data!E180<=control!$C$11)) -> FALSE | D204: =IF($C204,data!D180,NA()) ->  | E204: =IF($C204,data!E180,NA()) ->  | F204: =IF($C204,data!F180,0) -> 0
B205: =data!B181 -> Sivas | C205: =CHOOSE(mySelectionType, SQRT((data!D181-control!$C$8)^2+(myAspectRatio*(data!E181-control!$C$9))^2)<=control!$C$17, AND(data!D181<=control!$C$8,data!E181>=control!$C$9,data!D181>=control!$C$10,data!E181<=control!$C$11)) -> FALSE | D205: =IF($C205,data!D181,NA()) ->  | E205: =IF($C205,data!E181,NA()) ->  | F205: =IF($C205,data!F181,0) -> 0
B206: =data!B182 -> Mönchengladbach | C206: =CHOOSE(mySelectionType, SQRT((data!D182-control!$C$8)^2+(myAspectRatio*(data!E182-control!$C$9))^2)<=control!$C$17, AND(data!D182<=control!$C$8,data!E182>=control!$C$9,data!D182>=control!$C$10,data!E182<=control!$C$11)) -> FALSE | D206: =IF($C206,data!D182,NA()) ->  | E206: =IF($C206,data!E182,NA()) ->  | F206: =IF($C206,data!F182,0) -> 0
B207: =data!B183 -> Malmö | C207: =CHOOSE(mySelectionType, SQRT((data!D183-control!$C$8)^2+(myAspectRatio*(data!E183-control!$C$9))^2)<=control!$C$17, AND(data!D183<=control!$C$8,data!E183>=control!$C$9,data!D183>=control!$C$10,data!E183<=control!$C$11)) -> TRUE | D207: =IF($C207,data!D183,NA()) -> 55.60587 | E207: =IF($C207,data!E183,NA()) -> 13.00073 | F207: =IF($C207,data!F183,0) -> 261548
B208: =data!B184 -> Stoke-on-Trent | C208: =CHOOSE(mySelectionType, SQRT((data!D184-control!$C$8)^2+(myAspectRatio*(data!E184-control!$C$9))^2)<=control!$C$17, AND(data!D184<=control!$C$8,data!E184>=control!$C$9,data!D184>=control!$C$10,data!E184<=control!$C$11)) -> FALSE | D208: =IF($C208,data!D184,NA()) ->  | E208: =IF($C208,data!E184,NA()) ->  | F208: =IF($C208,data!F184,0) -> 0
B209: =data!B185 -> Augsburg | C209: =CHOOSE(mySelectionType, SQRT((data!D185-control!$C$8)^2+(myAspectRatio*(data!E185-control!$C$9))^2)<=control!$C$17, AND(data!D185<=control!$C$8,data!E185>=control!$C$9,data!D185>=control!$C$10,data!E185<=control!$C$11)) -> TRUE | D209: =IF($C209,data!D185,NA()) -> 48.37154 | E209: =IF($C209,data!E185,NA()) -> 10.89851 | F209: =IF($C209,data!F185,0) -> 259196
B210: =data!B186 -> Espoo | C210: =CHOOSE(mySelectionType, SQRT((data!D186-control!$C$8)^2+(myAspectRatio*(data!E186-control!$C$9))^2)<=control!$C$17, AND(data!D186<=control!$C$8,data!E186>=control!$C$9,data!D186>=control!$C$10,data!E186<=control!$C$11)) -> TRUE | D210: =IF($C210,data!D186,NA()) -> 60.2052 | E210: =IF($C210,data!E186,NA()) -> 24.6522 | F210: =IF($C210,data!F186,0) -> 256760
B211: =data!B187 -> Tarsus | C211: =CHOOSE(mySelectionType, SQRT((data!D187-control!$C$8)^2+(myAspectRatio*(data!E187-control!$C$9))^2)<=control!$C$17, AND(data!D187<=control!$C$8,data!E187>=control!$C$9,data!D187>=control!$C$10,data!E187<=control!$C$11)) -> FALSE | D211: =IF($C211,data!D187,NA()) ->  | E211: =IF($C211,data!E187,NA()) ->  | F211: =IF($C211,data!F187,0) -> 0
... 457 more rows
